Workbook

Sheet البيانات
A1: 1 | B1: 2 | C1: 3 | D1: 4 | E1: 5 | F1: 6 | G1: 7 | H1: 8 | I1: 9 | J1: 10 | K1: 11 | L1: 12 | M1: 13 | N1: 14 | O1: 15 | P1: 16
A2: ت | B2: رقم المستند | C2: تاريخ التحميل | D2: تاريخ التفريغ | E2: تاريخ الوصول | F2: وقت الوصول | G2: وقت التفريغ | H2: رقم السيارة | I2: العائدية | J2: اسم السائق | K2: المحمل | L2: المفرغ | M2: الكمية المحتسبة | N2: السعر | O2: المبلغ الكلي | P2: النقص | Q2: المنتوج
A3: 1 | B3: 838283 | C3: 2023-06-16 | D3: 2023-06-17 | H3: 48662 | J3: محمد عدنان عويد | K3: 35064 | L3: =K3 -> 35064 | M3: 35064 | N3: 13.44 | O3: =M3*N3 -> 471260.16
A4: 2 | B4: 838169 | C4: 2023-06-16 | D4: 2023-06-17 | H4: 559099 | J4: زهير ضاري زيدان | K4: 35194 | L4: 35194 | M4: 35194 | N4: 13.44 | O4: =M4*N4 -> 473007.36
A5: 3 | B5: 838280 | C5: 2023-06-16 | D5: 2023-06-17 | H5: 42344 | J5: وطبان عدنان عويد | K5: 35194 | L5: 35194 | M5: 35194 | N5: 13.44 | O5: 473007.36
A6: 4 | B6: 838485 | C6: 2023-06-16 | D6: 2023-06-18 | H6: 642 | J6: وليد خالد إبراهيم | K6: 35064 | L6: 35064 | M6: 35064 | N6: 13.44 | O6: 471260.16
A7: 5 | B7: 838459 | C7: 2023-06-16 | D7: 2023-06-18 | H7: 46564 | J7: مهند عامج حماد | K7: 35064 | L7: 35064 | M7: 35064 | N7: 13.44 | O7: 471260.16
A8: 6 | B8: 838466 | C8: 2023-06-16 | D8: 2023-06-17 | H8: 93455 | J8: مهند حسين محمد | K8: 34747 | L8: 34748 | M8: =MIN(K8:L8) -> 34747 | N8: 13.44 | O8: 466999.68
A9: 7 | B9: 838468 | C9: 2023-06-16 | D9: 2023-06-17 | H9: 19188 | J9: فلاح نوري زيدان | K9: 34747 | L9: 34748 | M9: =MIN(K9:L9) -> 34747 | N9: 13.44 | O9: 466999.68
A10: 8 | B10: 838481 | C10: 2023-06-16 | D10: 2023-06-17 | H10: 60568 | J10: مجبل عويد فرحان | K10: 34837 | L10: 34899 | M10: =MIN(K10:L10) -> 34837 | N10: 13.44 | O10: 468209.28
A11: 9 | B11: 838490 | C11: 2023-06-16 | D11: 2023-06-17 | H11: 558265 | J11: عبدالرحمن خميس | K11: 34748 | L11: 34751 | M11: =MIN(K11:L11) -> 34748 | N11: 13.44 | O11: 467013.12
A12: 10 | B12: 838370 | C12: 2023-06-16 | D12: 2023-06-20 | H12: 48662 | J12: محمد عدنان عويد | K12: 34762 | L12: 34521 | M12: =MIN(K12:L12) -> 34521 | N12: 13.44 | O12: 463962.24 | P12: 241
A13: 11 | B13: 831179 | C13: 2023-06-17 | D13: 2023-06-18 | H13: 559288 | J13: محمد خميس حمد | K13: 35028 | L13: =K13 -> 35028 | M13: 35028 | N13: 13.44 | O13: 470776.32
A14: 12 | B14: 831236 | C14: 2023-06-17 | D14: 2023-06-18 | H14: 557138 | J14: خلف عواد مخلف | K14: 35028 | L14: 35028 | M14: 35028 | N14: 13.44 | O14: 470776.32
A15: 13 | B15: 831225 | C15: 2023-06-17 | D15: 2023-06-18 | H15: 562749 | J15: جمعه عويد فرحان | K15: 35028 | L15: 35028 | M15: 35028 | N15: 13.44 | O15: 470776.32
A16: 14 | B16: 831188 | C16: 2023-06-17 | D16: 2023-06-18 | H16: 558808 | J16: احمد ضاري زيدان | K16: 34769 | L16: 34515 | M16: =MIN(K16:L16) -> 34515 | N16: 13.44 | O16: 463881.6 | P16: 254
A17: 15 | B17: 831165 | C17: 2023-06-17 | D17: 2023-06-18 | H17: 187888 | J17: خميس حسين علي | K17: 34769 | L17: 34636 | M17: =MIN(K17:L17) -> 34636 | N17: 13.44 | O17: 465507.84 | P17: 133
A18: 16 | B18: 831193 | C18: 2023-06-17 | D18: 2023-06-18 | H18: 50152 | J18: مجيد مطر فرحان | K18: 34952 | L18: 34959 | M18: =MIN(K18:L18) -> 34952 | N18: 13.44 | O18: 469754.88
A19: 17 | B19: 831103 | C19: 2023-06-17 | D19: 2023-06-18 | H19: 60445 | J19: مهند مزيون مطر | K19: 35952 | L19: 34959 | M19: =MIN(K19:L19) -> 34959 | N19: 13.44 | O19: 469848.96
A20: 18 | B20: 831139 | C20: 2023-06-17 | D20: 2023-06-19 | H20: 58383 | J20: سعيد خالد إبراهيم | K20: 34769 | L20: 34773 | M20: =MIN(K20:L20) -> 34769 | N20: 13.44 | O20: 467295.36
A21: 19 | B21: 831238 | C21: 2023-06-17 | D21: 2023-06-18 | H21: 61548 | J21: شعيب ضاري زيدان | K21: 35028 | L21: =K21 -> 35028 | M21: 35028 | N21: 13.44 | O21: 470776.32
A22: 20 | B22: 831338 | C22: 2023-06-18 | D22: 2023-06-19 | H22: 559099 | J22: زهير ضاري زيدان | K22: 35060 | L22: 35060 | M22: 35060 | N22: 13.44 | O22: 471206.4
A23: 21 | B23: 789300 | C23: 2023-06-18 | D23: 2023-06-19 | H23: 52576 | J23: زيد ضاحي حسن | K23: 35060 | L23: 35060 | M23: 35060 | N23: 13.44 | O23: 471206.4
A24: 22 | B24: 789375 | C24: 2023-06-18 | D24: 2023-06-19 | H24: 38949 | J24: حسين علي عواد | K24: 34859 | L24: 34868 | M24: =MIN(K24:L24) -> 34859 | N24: 13.44 | O24: 468504.96
A25: 23 | B25: 789374 | C25: 2023-06-18 | D25: 2023-06-19 | H25: 60929 | J25: محمد علي عواد | K25: 34859 | L25: 34868 | M25: =MIN(K25:L25) -> 34859 | N25: 13.44 | O25: 468504.96
A26: 24 | B26: 789370 | C26: 2023-06-18 | D26: 2023-06-20 | H26: 128292 | J26: سيف حماد عاصي | K26: 34859 | L26: 34863 | M26: =MIN(K26:L26) -> 34859 | N26: 13.44 | O26: 468504.96
A27: 25 | B27: 789421 | C27: 2023-06-18 | D27: 2023-06-20 | H27: 39143 | J27: فؤاد سامي جلوي | K27: 34812 | L27: 34813 | M27: =MIN(K27:L27) -> 34812 | N27: 13.44 | O27: 467873.28
A28: 26 | B28: 838352 | C28: 2023-06-19 | D28: 2023-06-20 | H28: 60568 | J28: مجبل عويد فرحان | K28: 35190 | L28: =K28 -> 35190 | M28: 35190 | N28: 13.44 | O28: 472953.6
A29: 27 | B29: 838357 | C29: 2023-06-19 | D29: 2023-06-20 | H29: 93455 | J29: مهند حسين محمد | K29: 35190 | L29: 35190 | M29: 35190 | N29: 13.44 | O29: 472953.6
A30: 28 | B30: 838354 | C30: 2023-06-19 | D30: 2023-06-20 | H30: 19188 | J30: فلاح نوري زيدان | K30: 35190 | L30: 35190 | M30: 35190 | N30: 13.44 | O30: 472953.6
A31: 29 | B31: 838353 | C31: 2023-06-19 | D31: 2023-06-20 | H31: 61548 | J31: شعيب ضاري زيدان | K31: 35190 | L31: 35190 | M31: 35190 | N31: 13.44 | O31: 472953.6
A32: 30 | B32: 838374 | C32: 2023-06-19 | D32: 2023-06-20 | H32: 558265 | J32: عبدالرحمن خميس | K32: 34762 | L32: 34655 | M32: =MIN(K32:L32) -> 34655 | N32: 13.44 | O32: 465763.2 | P32: 107
A33: 31 | B33: 838367 | C33: 2023-06-19 | D33: 2023-06-20 | H33: 65941 | J33: خالد مشرف طه | K33: 34762 | L33: 34767 | M33: =MIN(K33:L33) -> 34762 | N33: 13.44 | O33: 467201.28
A34: 32 | B34: 838399 | C34: 2023-06-19 | D34: 2023-06-20 | H34: 558808 | J34: احمد ضاري زيدان | K34: 34762 | L34: 34767 | M34: =MIN(K34:L34) -> 34762 | N34: 13.44 | O34: 467201.28
A35: 33 | B35: 838332 | C35: 2023-06-19 | D35: 2023-06-20 | H35: 168371 | J35: فراس كامل حسين | K35: 34762 | L35: 34767 | M35: =MIN(K35:L35) -> 34762 | N35: 13.44 | O35: 467201.28
A36: 34 | B36: 1320217 | C36: 2023-06-20 | D36: 2023-06-21 | H36: 557138 | J36: خلف عواد مخلف | K36: 35064 | L36: =K36 -> 35064 | M36: 35064 | N36: 13.44 | O36: 471260.16
A37: 35 | B37: 1320133 | C37: 2023-06-20 | D37: 2023-06-21 | H37: 562749 | J37: جمعه عويد فرحان | K37: 35064 | L37: 35064 | M37: 35064 | N37: 13.44 | O37: 471260.16
A38: 36 | B38: 1320135 | C38: 2023-06-20 | D38: 2023-06-21 | H38: 42344 | J38: وطبان عدنان عويد | K38: 35064 | L38: 35064 | M38: 35064 | N38: 13.44 | O38: 471260.16
A39: 37 | B39: 1320327 | C39: 2023-06-20 | D39: 2023-06-21 | H39: 642 | J39: وليد خالد إبراهيم | K39: 34999 | L39: 34999 | M39: 34999 | N39: 13.44 | O39: 470386.56
A40: 38 | B40: 1320304 | C40: 2023-06-20 | D40: 2023-06-21 | H40: 58383 | J40: سعيد خالد إبراهيم | K40: 34668 | L40: 34669 | M40: =MIN(K40:L40) -> 34668 | N40: 13.44 | O40: 465937.92
A41: 39 | B41: 1320273 | C41: 2023-06-20 | D41: 2023-06-22 | H41: 195972 | J41: مجيد جمعة علي | K41: 34668 | L41: 34672 | M41: =MIN(K41:L41) -> 34668 | N41: 13.44 | O41: 465937.92
A42: 40 | B42: 1320187 | C42: 2023-06-20 | D42: 2023-06-21 | H42: 59997 | J42: تحسين محمد زغير | K42: 34668 | L42: 34672 | M42: =MIN(K42:L42) -> 34668 | N42: 13.44 | O42: 465937.92
A43: 41 | B43: 1342169 | C43: 2023-06-21 | D43: 2023-06-22 | H43: 559099 | J43: زهير ضاري زيدان | K43: 35064 | L43: =K43 -> 35064 | M43: 35064 | N43: 13.44 | O43: 471260.16
A44: 42 | B44: 1342126 | C44: 2023-06-21 | D44: 2023-06-22 | H44: 559288 | J44: محمد خميس حمد | K44: 35064 | L44: 35064 | M44: 35064 | N44: 13.44 | O44: 471260.16
A45: 43 | B45: 1342134 | C45: 2023-06-21 | D45: 2023-06-22 | H45: 168371 | J45: فراس كامل حسين | K45: 35064 | L45: 35064 | M45: 35064 | N45: 13.44 | O45: 471260.16
A46: 44 | B46: 838197 | C46: 2023-06-21 | D46: 2023-06-23 | H46: 52576 | J46: زيد ضاحي حسن | K46: 35064 | L46: 35064 | M46: 35064 | N46: 13.44 | O46: 471260.16
A47: 45 | B47: 838053 | C47: 2023-06-21 | D47: 2023-06-22 | H47: 187888 | J47: خميس حسين علي | K47: 34668 | L47: 34672 | M47: =MIN(K47:L47) -> 34668 | N47: 13.44 | O47: 465937.92
A48: 46 | B48: 1342076 | C48: 2023-06-21 | D48: 2023-06-22 | H48: 50152 | J48: مجيد مطر فرحان | K48: 34668 | L48: 34674 | M48: =MIN(K48:L48) -> 34668 | N48: 13.44 | O48: 465937.92
A49: 47 | B49: 1342077 | C49: 2023-06-21 | D49: 2023-06-22 | H49: 60445 | J49: مهند مزيون مطر | K49: 34668 | L49: 34674 | M49: =MIN(K49:L49) -> 34668 | N49: 13.44 | O49: 465937.92
A50: 48 | B50: 1342255 | C50: 2023-06-22 | D50: 2023-06-23 | H50: 46564 | J50: مهند عامج حماد | K50: 35064 | L50: =K50 -> 35064 | M50: 35064 | N50: 13.44 | O50: 471260.16
A51: 49 | B51: 1342049 | C51: 2023-06-22 | D51: 2023-06-23 | H51: 60568 | J51: مجبل عويد فرحان | K51: 35064 | L51: 35064 | M51: 35064 | N51: 13.44 | O51: 471260.16
A52: 50 | B52: 1342242 | C52: 2023-06-22 | D52: 2023-06-23 | H52: 61548 | J52: شعيب ضاري زيدان | K52: 35194 | L52: 35194 | M52: 35194 | N52: 13.44 | O52: 473007.36
A53: 51 | B53: 1342251 | C53: 2023-06-22 | D53: 2023-06-23 | H53: 65941 | J53: خالد مشرف طه | K53: 35064 | L53: 35064 | M53: 35064 | N53: 13.44 | O53: 471260.16
A54: 52 | B54: 1342471 | C54: 2023-06-22 | D54: 2023-06-23 | H54: 128292 | J54: سيف حماد عاصي | K54: 34675 | L54: 34680 | M54: =MIN(K54:L54) -> 34675 | N54: 13.44 | O54: 466032
A55: 53 | B55: 1342206 | C55: 2023-06-22 | D55: 2023-06-23 | H55: 39143 | J55: فؤاد سامي جلوي | K55: 34996 | L55: 35001 | M55: =MIN(K55:L55) -> 34996 | N55: 13.44 | O55: 470346.24
A56: 54 | B56: 1342036 | C56: 2023-06-22 | D56: 2023-06-23 | H56: 558808 | J56: احمد ضاري زيدان | K56: 35266 | L56: 35266 | M56: =MIN(K56:L56) -> 35266 | N56: 13.44 | O56: 473975.04
A57: 55 | B57: 831420 | C57: 2023-06-23 | D57: 2023-06-24 | H57: 48662 | J57: محمد عدنان عويد | K57: 34167 | L57: =K57 -> 34167 | M57: 34167 | N57: 13.44 | O57: 459204.48
A58: 56 | B58: 831417 | C58: 2023-06-23 | D58: 2023-06-24 | H58: 93455 | J58: مهند حسين محمد | K58: 35167 | L58: 35167 | M58: 35167 | N58: 13.44 | O58: 472644.48
A59: 57 | B59: 831410 | C59: 2023-06-23 | D59: 2023-06-24 | H59: 59997 | J59: تحسين محمد زغير | K59: 34967 | L59: 34967 | M59: 34967 | N59: 13.44 | O59: 469956.48
A60: 58 | B60: 831416 | C60: 2023-06-23 | D60: 2023-06-24 | H60: 19188 | J60: فلاح نوري زيدان | K60: 34967 | L60: 34967 | M60: 34967 | N60: 13.44 | O60: 469956.48
A61: 59 | B61: 789468 | C61: 2023-06-23 | D61: 2023-06-24 | H61: 558265 | J61: عبدالرحمن خميس | K61: 34636 | L61: 34639 | M61: =MIN(K61:L61) -> 34636 | N61: 13.44 | O61: 465507.84
A62: 60 | B62: 789438 | C62: 2023-06-23 | D62: 2023-06-24 | H62: 60929 | J62: محمد علي عواد | K62: 34636 | L62: 34642 | M62: =MIN(K62:L62) -> 34636 | N62: 13.44 | O62: 465507.84
A63: 61 | B63: 789433 | C63: 2023-06-23 | D63: 2023-06-24 | H63: 38949 | J63: حسين علي عواد | K63: 34636 | L63: 34642 | M63: =MIN(K63:L63) -> 34636 | N63: 13.44 | O63: 465507.84
A64: 62 | B64: 1345766 | C64: 2023-06-24 | D64: 2023-06-25 | H64: 642 | J64: وليد خالد إبراهيم | K64: 34934 | L64: =K64 -> 34934 | M64: 34934 | N64: 13.44 | O64: 469512.96
A65: 63 | B65: 1345801 | C65: 2023-06-24 | D65: 2023-06-25 | H65: 42344 | J65: وطبان عدنان عويد | K65: 35032 | L65: 35032 | M65: 35032 | N65: 13.44 | O65: 470830.08
A66: 64 | B66: 1345806 | C66: 2023-06-24 | D66: 2023-06-25 | H66: 557138 | J66: خلف عواد مخلف | K66: 35032 | L66: 35032 | M66: 35032 | N66: 13.44 | O66: 470830.08
A67: 65 | B67: 1345782 | C67: 2023-06-24 | D67: 2023-06-25 | H67: 562749 | J67: جمعه عويد فرحان | K67: 35194 | L67: 35194 | M67: 35194 | N67: 13.44 | O67: 473007.36
A68: 66 | B68: 1345813 | C68: 2023-06-24 | D68: 2023-06-25 | H68: 187888 | J68: خميس حسين علي | K68: 34596 | L68: 34596 | M68: =MIN(K68:L68) -> 34596 | N68: 13.44 | O68: =M68*N68 -> 464970.24
A69: 67 | B69: 1345817 | C69: 2023-06-24 | D69: 2023-06-26 | H69: 195972 | J69: مجيد جمعة علي | K69: 34589 | L69: 34589 | M69: =MIN(K69:L69) -> 34589 | N69: 13.44 | O69: 464876.16
A70: 68 | B70: 1320476 | C70: 2023-06-25 | D70: 2023-06-26 | H70: 559099 | J70: زهير ضاري زيدان | K70: 35032 | L70: =K70 -> 35032 | M70: 35032 | N70: 13.44 | O70: 470830.08
A71: 69 | B71: 1320479 | C71: 2023-06-25 | D71: 2023-06-26 | H71: 559288 | J71: محمد خميس حمد | K71: 35032 | L71: 35032 | M71: 35032 | N71: 13.44 | O71: 470830.08
A72: 70 | B72: 1320281 | C72: 2023-06-25 | D72: 2023-06-26 | H72: 52576 | J72: زيد ضاحي حسن | K72: 35032 | L72: 35032 | M72: 35032 | N72: 13.44 | O72: 470830.08
A73: 71 | B73: 1320481 | C73: 2023-06-25 | D73: 2023-06-26 | H73: 60568 | J73: مجبل عويد فرحان | K73: 35032 | L73: 35032 | M73: 35032 | N73: 13.44 | O73: 470830.08
A74: 72 | B74: 1323503 | C74: 2023-06-25 | D74: 2023-06-26 | H74: 558808 | J74: احمد ضاري زيدان | K74: 34629 | L74: 34629 | M74: =MIN(K74:L74) -> 34629 | N74: 13.44 | O74: 465413.76
A75: 73 | B75: 1323598 | C75: 2023-06-25 | D75: 2023-06-26 | H75: 50152 | J75: مجيد مطر فرحان | K75: 34953 | L75: 34953 | M75: =MIN(K75:L75) -> 34953 | N75: 13.44 | O75: 469768.32
A76: 74 | B76: 1323659 | C76: 2023-06-25 | D76: 2023-06-26 | H76: 60445 | J76: مهند مزيون مطر | K76: 34953 | L76: 34953 | M76: =MIN(K76:L76) -> 34953 | N76: 13.44 | O76: 469768.32
A77: 75 | B77: 1323700 | C77: 2023-06-26 | D77: 2023-06-27 | H77: 93455 | J77: مهند حسين محمد | K77: 35032 | L77: =K77 -> 35032 | M77: 35032 | N77: 13.44 | O77: 470830.08
A78: 76 | B78: 1323666 | C78: 2023-06-26 | D78: 2023-06-27 | H78: 19188 | J78: فلاح نوري زيدان | K78: 35032 | L78: 35032 | M78: 35032 | N78: 13.44 | O78: 470830.08
A79: 77 | B79: 1323721 | C79: 2023-06-26 | D79: 2023-06-27 | H79: 46564 | J79: مهند عامج حماد | K79: 34967 | L79: 34967 | M79: 34967 | N79: 13.44 | O79: 469956.48
A80: 78 | B80: 1323664 | C80: 2023-06-26 | D80: 2023-06-27 | H80: 61548 | J80: شعيب ضاري زيدان | K80: 35032 | L80: 35032 | M80: 35032 | N80: 13.44 | O80: 470830.08
A81: 79 | B81: 1323816 | C81: 2023-06-26 | D81: 2023-06-27 | H81: 15214 | J81: محمد زيدان خلف | K81: 34894 | L81: 34894 | M81: =MIN(K81:L81) -> 34894 | N81: 13.44 | O81: 468975.36
A82: 80 | B82: 1323876 | C82: 2023-06-26 | D82: 2023-06-27 | H82: 39143 | J82: فؤاد سامي جلوي | K82: 34894 | L82: 34894 | M82: =MIN(K82:L82) -> 34894 | N82: 13.44 | O82: 468975.36
A83: 81 | B83: 1323649 | C83: 2023-06-26 | D83: 2023-06-27 | H83: 558265 | J83: عبدالرحمن خميس | K83: 34755 | L83: 34755 | M83: =MIN(K83:L83) -> 34755 | N83: 13.44 | O83: 467107.2
A84: 82 | B84: 1342449 | C84: 2023-06-27 | D84: 2023-06-28 | H84: 558808 | J84: احمد ضاري زيدان | K84: 35298 | L84: =K84 -> 35298 | M84: 35298 | N84: 13.44 | O84: 474405.12
A85: 83 | B85: 1342374 | C85: 2023-06-27 | D85: 2023-06-28 | H85: 562749 | J85: جمعه عويد فرحان | K85: 35298 | L85: 35298 | M85: 35298 | N85: 13.44 | O85: 474405.12
A86: 84 | B86: 1342445 | C86: 2023-06-27 | D86: 2023-06-28 | H86: 59997 | J86: تحسين محمد زغير | K86: 35298 | L86: 35298 | M86: 35298 | N86: 13.44 | O86: 474405.12
A87: 85 | B87: 1342447 | C87: 2023-06-27 | D87: 2023-06-28 | H87: 559099 | J87: زهير ضاري زيدان | K87: 35298 | L87: 35298 | M87: 35298 | N87: 13.44 | O87: 474405.12
A88: 86 | B88: 1316938 | C88: 2023-06-27 | D88: 2023-06-28 | H88: 187888 | J88: خميس حسين علي | K88: 34910 | L88: 34910 | M88: =MIN(K88:L88) -> 34910 | N88: 13.44 | O88: 469190.4
A89: 87 | B89: 1316975 | C89: 2023-06-27 | D89: 2023-06-28 | H89: 642 | J89: وليد خالد إبراهيم | K89: 34908 | L89: 34908 | M89: =MIN(K89:L89) -> 34908 | N89: 13.44 | O89: 469163.52
A90: 88 | B90: 1316932 | C90: 2023-06-27 | D90: 2023-06-28 | H90: 38949 | J90: حسين علي عواد | K90: 34908 | L90: 34908 | M90: =MIN(K90:L90) -> 34908 | N90: 13.44 | O90: 469163.52
A91: 89 | B91: 1316931 | C91: 2023-06-27 | D91: 2023-06-28 | H91: 60929 | J91: محمد علي عواد | K91: 34915 | L91: 34915 | M91: =MIN(K91:L91) -> 34915 | N91: 13.44 | O91: 469257.6
A92: 90 | B92: 1317397 | C92: 2023-06-28 | D92: 2023-03-29 | H92: 195972 | J92: مجيد جمعة علي | K92: 34914 | L92: 34914 | M92: =MIN(K92:L92) -> 34914 | N92: 13.44 | O92: 469244.16
A93: 91 | B93: 1317453 | C93: 2023-06-28 | D93: 2023-06-29 | H93: 52576 | J93: زيد ضاحي حسن | K93: 35096 | L93: =K93 -> 35096 | M93: 35096 | N93: 13.44 | O93: 471690.24
A94: 92 | B94: 1317251 | C94: 2023-06-28 | D94: 2023-06-29 | H94: 557138 | J94: خلف عواد مخلف | K94: 35096 | L94: 35096 | M94: 35096 | N94: 13.44 | O94: 471690.24
A95: 93 | B95: 1317482 | C95: 2023-06-28 | D95: 2023-06-29 | H95: 559288 | J95: محمد خميس حمد | K95: 35096 | L95: 35096 | M95: 35096 | N95: 13.44 | O95: 471690.24
A96: 94 | B96: 1317481 | C96: 2023-06-28 | D96: 2023-06-29 | H96: 558265 | J96: عبدالرحمن خميس | K96: 35096 | L96: 35096 | M96: 35096 | N96: 13.44 | O96: 471690.24
A97: 95 | B97: 1317387 | C97: 2023-06-28 | D97: 2023-06-29 | H97: 558808 | J97: احمد ضاري زيدان | K97: 34495 | L97: 34495 | M97: =MIN(K97:L97) -> 34495 | N97: 13.44 | O97: 463612.8
A98: 96 | B98: 1317292 | C98: 2023-06-28 | D98: 2023-06-30 | H98: 15214 | J98: محمد زيدان خلف | K98: 34914 | L98: 34914 | M98: =MIN(K98:L98) -> 34914 | N98: 13.44 | O98: 469244.16
A99: 97 | B99: 1317288 | C99: 2023-06-28 | D99: 2023-06-30 | H99: 39143 | J99: فؤاد سامي جلوي | K99: 34914 | L99: 34914 | M99: =MIN(K99:L99) -> 34914 | N99: 13.44 | O99: 469244.16
A100: 98 | B100: 1345696 | C100: 2023-06-29 | D100: 2023-06-30 | H100: 61548 | J100: شعيب ضاري زيدان | K100: 35258 | L100: =K100 -> 35258 | M100: 35258 | N100: 13.44 | O100: 473867.52
A101: 99 | B101: 1252133 | C101: 2023-06-29 | D101: 2023-06-30 | H101: 60568 | J101: مجبل عويد فرحان | K101: 35064 | L101: 35064 | M101: 35064 | N101: 13.44 | O101: 471260.16
A102: 100 | B102: 1252126 | C102: 2023-06-29 | D102: 2023-06-30 | H102: 93455 | J102: مهند حسين محمد | K102: 35067 | L102: 35067 | M102: 35067 | N102: 13.44 | O102: 471300.48
A103: 101 | B103: 1252054 | C103: 2023-06-29 | D103: 2023-06-30 | H103: 60445 | J103: مهند مزيون مطر | K103: 34652 | L103: 34652 | M103: =MIN(K103:L103) -> 34652 | N103: 13.44 | O103: 465722.88
A104: 102 | B104: 1252149 | C104: 2023-06-29 | D104: 2023-06-30 | H104: 19188 | J104: فلاح نوري زيدان | K104: 34653 | L104: 34653 | M104: =MIN(K104:L104) -> 34653 | N104: 13.44 | O104: 465736.32
A105: 103 | B105: 1345866 | C105: 2023-06-30 | D105: 2023-07-01 | H105: 168371 | J105: فراس كامل حسين | K105: 35064 | L105: =K105 -> 35064 | M105: 35064 | N105: 13.44 | O105: 471260.16
A106: 104 | B106: 1346000 | C106: 2023-06-30 | D106: 2023-07-01 | H106: 48662 | J106: محمد عدنان عويد | K106: 35194 | L106: 35194 | M106: 35194 | N106: 13.44 | O106: 473007.36
A107: 105 | B107: 1345865 | C107: 2023-06-30 | D107: 2023-07-01 | H107: 65941 | J107: خالد مشرف طه | K107: 35464 | L107: 35464 | M107: 35464 | N107: 13.44 | O107: 476636.16
A108: 106 | B108: 1345999 | C108: 2023-06-30 | D108: 2023-07-02 | H108: 59997 | J108: تحسين محمد زغير | K108: 35194 | L108: 35194 | M108: 35194 | N108: 13.44 | O108: 473007.36
A109: 107 | B109: 1345947 | C109: 2023-06-30 | D109: 2023-07-01 | H109: 60929 | J109: محمد علي عواد | K109: 34969 | L109: 34969 | M109: =MIN(K109:L109) -> 34969 | N109: 13.44 | O109: 469983.36
A110: 108 | B110: 1345908 | C110: 2023-06-30 | D110: 2023-07-01 | H110: 187888 | J110: خميس حسين علي | K110: 34646 | L110: 34646 | M110: =MIN(K110:L110) -> 34646 | N110: 13.44 | O110: 465642.24
A111: 109 | B111: 1252164 | C111: 2023-06-30 | D111: 2023-07-01 | H111: 38949 | J111: حسين علي عواد | K111: 34966 | L111: 34966 | M111: =MIN(K111:L111) -> 34966 | N111: 13.44 | O111: 469943.04
A112: 110 | B112: 1345910 | C112: 2023-06-30 | D112: 2023-07-01 | H112: 642 | J112: وليد خالد إبراهيم | K112: 34646 | L112: 34646 | M112: =MIN(K112:L112) -> 34646 | N112: 13.44 | O112: 465642.24
A113: 111 | B113: 1252052 | C113: 2023-06-30 | D113: 2023-06-30 | H113: 50152 | J113: مجيد مطر فرحان | K113: 34656 | L113: 34656 | M113: =MIN(K113:L113) -> 34656 | N113: 13.44 | O113: 465776.64
A114: 112 | B114: 1320412 | C114: 2023-07-01 | D114: 2023-07-02 | H114: 39143 | J114: =VLOOKUP(H114,#REF!,2,0) ->  | K114: 34880 | L114: 34884 | M114: =L114 -> 34884 | N114: 13.44 | O114: 468840.96
A115: 113 | B115: 1320418 | C115: 2023-07-01 | D115: 2023-07-02 | H115: 151214 | J115: محمد زيدان خلف | K115: 34880 | L115: 34884 | M115: 34884 | N115: 13.44 | O115: 468840.96
A116: 114 | B116: 1323979 | C116: 2023-07-01 | D116: 2023-07-02 | H116: 558808 | J116: =VLOOKUP(H116,#REF!,2,0) ->  | K116: 34600 | L116: 34605 | M116: 34605 | N116: 13.44 | O116: 465091.2
A117: 115 | B117: 1323978 | C117: 2023-07-01 | D117: 2023-07-02 | H117: 559099 | J117: =VLOOKUP(H117,#REF!,2,0) ->  | K117: 34600 | L117: 34608 | M117: 34608 | N117: 13.44 | O117: 465131.52
A118: 116 | B118: 1323875 | C118: 2023-07-01 | D118: 2023-07-02 | H118: 52576 | J118: =VLOOKUP(H118,#REF!,2,0) ->  | K118: 35071 | L118: =K118 -> 35071 | M118: 35071 | N118: 13.44 | O118: 471354.24
A119: 117 | B119: 1320381 | C119: 2023-07-01 | D119: 2023-07-02 | H119: 46564 | J119: =VLOOKUP(H119,#REF!,2,0) ->  | K119: 35071 | L119: =K119 -> 35071 | M119: 35071 | N119: 13.44 | O119: 471354.24
A120: 118 | B120: 1323857 | C120: 2023-07-01 | D120: 2023-07-02 | H120: 557138 | J120: =VLOOKUP(H120,#REF!,2,0) ->  | K120: 35201 | L120: =K120 -> 35201 | M120: 35201 | N120: 13.44 | O120: 473101.44
A121: 119 | B121: 1323860 | C121: 2023-07-01 | D121: 2023-07-02 | H121: 562749 | J121: =VLOOKUP(H121,#REF!,2,0) ->  | K121: 35201 | L121: =K121 -> 35201 | M121: 35201 | N121: 13.44 | O121: 473101.44
A122: 120 | B122: 1324202 | C122: 2023-07-02 | D122: 2023-07-03 | H122: 50152 | J122: =VLOOKUP(H122,#REF!,2,0) ->  | K122: 34873 | L122: 34872 | M122: 34872 | N122: 13.44 | O122: 468679.68
A123: 121 | B123: 1324205 | C123: 2023-07-02 | D123: 2023-07-03 | H123: 60445 | J123: =VLOOKUP(H123,#REF!,2,0) ->  | K123: 34873 | L123: 34813 | M123: 34813 | N123: 13.44 | O123: 467886.72 | P123: 60
A124: 122 | B124: 1324086 | C124: 2023-07-02 | D124: 2023-07-03 | H124: 195972 | J124: =VLOOKUP(H124,#REF!,2,0) ->  | K124: 35014 | L124: 35011 | M124: 35011 | N124: 13.44 | O124: 470547.84 | P124: 3
A125: 123 | B125: 1320456 | C125: 2023-07-02 | D125: 2023-07-04 | H125: 93455 | J125: =VLOOKUP(H125,#REF!,2,0) ->  | K125: 35006 | L125: =K125 -> 35006 | M125: 35006 | N125: 13.44 | O125: 470480.64
A126: 124 | B126: 1320450 | C126: 2023-07-02 | D126: 2023-07-03 | H126: 61548 | J126: =VLOOKUP(H126,#REF!,2,0) ->  | K126: 35201 | L126: =K126 -> 35201 | M126: 35201 | N126: 13.44 | O126: 473101.44
A127: 125 | B127: 1320451 | C127: 2023-07-02 | D127: 2023-07-03 | H127: 19188 | J127: =VLOOKUP(H127,#REF!,2,0) ->  | K127: 35201 | L127: =K127 -> 35201 | M127: 35201 | N127: 13.44 | O127: 473101.44
A128: 126 | B128: 1316621 | C128: 2023-07-03 | D128: 2023-07-04 | H128: 128292 | J128: =VLOOKUP(H128,#REF!,2,0) ->  | K128: 34970 | L128: 34979 | M128: 34979 | N128: 13.44 | O128: 470117.76
A129: 127 | B129: 1316593 | C129: 2023-07-03 | D129: 2023-07-04 | H129: 38949 | J129: =VLOOKUP(H129,#REF!,2,0) ->  | K129: 34538 | L129: 34591 | M129: 34591 | N129: 13.44 | O129: 464903.04
A130: 128 | B130: 1316627 | C130: 2023-07-03 | D130: 2023-07-04 | H130: 60929 | J130: =VLOOKUP(H130,#REF!,2,0) ->  | K130: 34538 | L130: 34552 | M130: 34552 | N130: 13.44 | O130: 464378.88
A131: 129 | B131: 1316618 | C131: 2023-07-03 | D131: 2023-07-04 | H131: 187888 | J131: =VLOOKUP(H131,#REF!,2,0) ->  | K131: 34970 | L131: 34980 | M131: 34980 | N131: 13.44 | O131: 470131.2
A132: 130 | B132: 1316679 | C132: 2023-07-03 | D132: 2023-07-04 | H132: 168371 | J132: =VLOOKUP(H132,#REF!,2,0) ->  | K132: 35010 | L132: =K132 -> 35010 | M132: 35010 | N132: 13.44 | O132: =M132*N132 -> 470534.4
A133: 131 | B133: 1316676 | C133: 2023-07-03 | D133: 2023-07-04 | H133: 559099 | J133: =VLOOKUP(H133,#REF!,2,0) ->  | K133: 35140 | L133: =K133 -> 35140 | M133: 35140 | N133: 13.44 | O133: 472281.6
A134: 132 | B134: 1316678 | C134: 2023-07-03 | D134: 2023-07-04 | H134: 60568 | J134: =VLOOKUP(H134,#REF!,2,0) ->  | K134: 35140 | L134: =K134 -> 35140 | M134: 35140 | N134: 13.44 | O134: 472281.6
A135: 133 | B135: 1317341 | C135: 2023-07-04 | D135: 2023-07-05 | H135: 39143 | J135: =VLOOKUP(H135,#REF!,2,0) ->  | K135: 34834 | L135: 34849 | M135: 34849 | N135: 13.44 | O135: 468370.56
A136: 134 | B136: 1317364 | C136: 2023-07-04 | D136: 2023-07-05 | H136: 52576 | J136: =VLOOKUP(H136,#REF!,2,0) ->  | K136: 34650 | L136: 34457 | M136: 34457 | N136: 13.44 | O136: 463102.08 | P136: 193
A137: 135 | B137: 1229928 | C137: 2023-07-04 | D137: 2023-07-05 | H137: 195972 | J137: =VLOOKUP(H137,#REF!,2,0) ->  | K137: 35060 | L137: 35064 | M137: 35064 | N137: 13.44 | O137: 471260.16
A138: 136 | B138: 1316741 | C138: 2023-07-04 | D138: 2023-07-05 | H138: 15214 | J138: =VLOOKUP(H138,#REF!,2,0) ->  | K138: 34834 | L138: 34840 | M138: 34840 | N138: 13.44 | O138: 468249.6
A139: 137 | B139: 1317353 | C139: 2023-07-04 | D139: 2023-07-05 | H139: 61548 | J139: =VLOOKUP(H139,#REF!,2,0) ->  | K139: 34945 | L139: =K139 -> 34945 | M139: 34945 | N139: 13.44 | O139: 469660.8
A140: 138 | B140: 1317355 | C140: 2023-07-04 | D140: 2023-07-05 | H140: 65941 | J140: =VLOOKUP(H140,#REF!,2,0) ->  | K140: 34945 | L140: =K140 -> 34945 | M140: 34945 | N140: 13.44 | O140: 469660.8
A141: 139 | B141: 1316707 | C141: 2023-07-04 | D141: 2023-07-05 | H141: 559288 | J141: =VLOOKUP(H141,#REF!,2,0) ->  | K141: 34945 | L141: =K141 -> 34945 | M141: 34945 | N141: 13.44 | O141: 469660.8
A142: 140 | B142: 1316643 | C142: 2023-07-04 | D142: 2023-07-05 | H142: 59997 | J142: =VLOOKUP(H142,#REF!,2,0) ->  | K142: 35204 | L142: =K142 -> 35204 | M142: 35204 | N142: 13.44 | O142: 473141.76
A143: 141 | B143: 1252202 | C143: 2023-07-05 | D143: 2023-07-06 | H143: 19188 | J143: =VLOOKUP(H143,#REF!,2,0) ->  | K143: 34560 | L143: 34568 | M143: 34568 | N143: 13.44 | O143: 464593.92
A144: 142 | B144: 1252203 | C144: 2023-07-05 | D144: 2023-07-06 | H144: 93455 | J144: =VLOOKUP(H144,#REF!,2,0) ->  | K144: 34560 | L144: 34568 | M144: 34568 | N144: 13.44 | O144: 464593.92
A145: 143 | B145: 1252305 | C145: 2023-07-05 | D145: 2023-07-06 | H145: 60445 | J145: =VLOOKUP(H145,#REF!,2,0) ->  | K145: 34560 | L145: 34567 | M145: 34567 | N145: 13.44 | O145: 464580.48
A146: 144 | B146: 1252304 | C146: 2023-07-05 | D146: 2023-07-06 | H146: 50152 | J146: =VLOOKUP(H146,#REF!,2,0) ->  | K146: 34560 | L146: 34567 | M146: 34567 | N146: 13.44 | O146: 464580.48
A147: 145 | B147: 1252195 | C147: 2023-07-05 | D147: 2023-07-06 | H147: 557138 | J147: =VLOOKUP(H147,#REF!,2,0) ->  | K147: 35140 | L147: =K147 -> 35140 | M147: 35140 | N147: 13.44 | O147: 472281.6
A148: 146 | B148: 1252197 | C148: 2023-07-05 | D148: 2023-07-06 | H148: 562749 | J148: =VLOOKUP(H148,#REF!,2,0) ->  | K148: 35140 | L148: =K148 -> 35140 | M148: 35140 | N148: 13.44 | O148: 472281.6
A149: 147 | B149: 1252232 | C149: 2023-07-05 | D149: 2023-07-06 | H149: 46564 | J149: =VLOOKUP(H149,#REF!,2,0) ->  | K149: 35140 | L149: =K149 -> 35140 | M149: 35140 | N149: 13.44 | O149: 472281.6
A150: 148 | B150: 1252198 | C150: 2023-07-05 | D150: 2023-07-06 | H150: 48662 | J150: =VLOOKUP(H150,#REF!,2,0) ->  | K150: 35140 | L150: =K150 -> 35140 | M150: 35140 | N150: 13.44 | O150: 472281.6
A151: 149 | B151: 1252200 | C151: 2023-07-05 | D151: 2023-07-06 | H151: 559099 | J151: =VLOOKUP(H151,#REF!,2,0) ->  | K151: 35140 | L151: =K151 -> 35140 | M151: 35140 | N151: 13.44 | O151: 472281.6
A152: 150 | B152: 1252350 | C152: 2023-07-06 | D152: 2023-07-07 | H152: 38949 | J152: =VLOOKUP(H152,#REF!,2,0) ->  | K152: 34470 | L152: 34475 | M152: 34475 | N152: 13.44 | O152: 463344
A153: 151 | B153: 1252410 | C153: 2023-07-06 | D153: 2023-07-07 | H153: 187888 | J153: =VLOOKUP(H153,#REF!,2,0) ->  | K153: 34751 | L153: 34760 | M153: 34760 | N153: 13.44 | O153: 467174.4
A154: 152 | B154: 1252490 | C154: 2023-07-06 | D154: 2023-07-07 | H154: 128292 | J154: =VLOOKUP(H154,#REF!,2,0) ->  | K154: 34751 | L154: 34760 | M154: 34760 | N154: 13.44 | O154: 467174.4
A155: 153 | B155: 1252441 | C155: 2023-07-06 | D155: 2023-07-07 | H155: 60929 | J155: =VLOOKUP(H155,#REF!,2,0) ->  | K155: 34470 | L155: 34475 | M155: 34475 | N155: 13.44 | O155: 463344
A156: 154 | B156: 1261554 | C156: 2023-07-06 | D156: 2023-07-07 | H156: 60568 | J156: =VLOOKUP(H156,#REF!,2,0) ->  | K156: 35140 | L156: =K156 -> 35140 | M156: 35140 | N156: 13.44 | O156: 472281.6
A157: 155 | B157: 1261555 | C157: 2023-07-06 | D157: 2023-07-07 | H157: 59997 | J157: =VLOOKUP(H157,#REF!,2,0) ->  | K157: 35140 | L157: =K157 -> 35140 | M157: 35140 | N157: 13.44 | O157: 472281.6
A158: 156 | B158: 1261553 | C158: 2023-07-06 | D158: 2023-07-07 | H158: 61548 | J158: =VLOOKUP(H158,#REF!,2,0) ->  | K158: 35140 | L158: =K158 -> 35140 | M158: 35140 | N158: 13.44 | O158: 472281.6
A159: 157 | B159: 1261592 | C159: 2023-07-06 | D159: 2023-07-08 | H159: 65941 | J159: =VLOOKUP(H159,#REF!,2,0) ->  | K159: 35432 | L159: 35032 | M159: =MIN(K159:L159) -> 35032 | N159: 13.44 | O159: 470830.08
A160: 158 | B160: 1252332 | C160: 2023-07-06 | D160: 2023-07-07 | H160: 52576 | J160: =VLOOKUP(H160,#REF!,2,0) ->  | K160: 35032 | L160: =K160 -> 35032 | M160: =MIN(K160:L160) -> 35032 | N160: 13.44 | O160: 470830.08
A161: 159 | B161: 1218458 | C161: 2023-07-07 | D161: 2023-07-08 | H161: 50152 | J161: =VLOOKUP(H161,#REF!,2,0) ->  | K161: 34783 | L161: 34787 | M161: =L161 -> 34787 | N161: 13.44 | O161: 467537.28
A162: 160 | B162: 1218343 | C162: 2023-07-07 | D162: 2023-07-08 | H162: 39143 | J162: =VLOOKUP(H162,#REF!,2,0) ->  | K162: 34783 | L162: 34786 | M162: 34786 | N162: 13.44 | O162: 467523.84
A163: 161 | B163: 1218471 | C163: 2023-07-07 | D163: 2023-07-08 | H163: 15214 | J163: =VLOOKUP(H163,#REF!,2,0) ->  | K163: 34783 | L163: 34787 | M163: 34787 | N163: 13.44 | O163: 467537.28
A164: 162 | B164: 1218459 | C164: 2023-07-07 | D164: 2023-07-08 | H164: 60445 | J164: =VLOOKUP(H164,#REF!,2,0) ->  | K164: 34783 | L164: 34787 | M164: 34787 | N164: 13.44 | O164: 467537.28
A165: 163 | B165: 1324099 | C165: 2023-07-07 | D165: 2023-07-08 | H165: 557138 | J165: =VLOOKUP(H165,#REF!,2,0) ->  | K165: 35204 | L165: =K165 -> 35204 | M165: 35204 | N165: 13.44 | O165: 473141.76
A166: 164 | B166: 1324123 | C166: 2023-07-07 | D166: 2023-07-08 | H166: 93455 | J166: =VLOOKUP(H166,#REF!,2,0) ->  | K166: 35075 | L166: =K166 -> 35075 | M166: 35075 | N166: 13.44 | O166: 471408
A167: 165 | B167: 1218457 | C167: 2023-07-07 | D167: 2023-07-08 | H167: 559288 | J167: =VLOOKUP(H167,#REF!,2,0) ->  | K167: 35042 | L167: =K167 -> 35042 | M167: 35042 | N167: 13.44 | O167: 470964.48
A168: 166 | B168: 1218429 | C168: 2023-07-07 | D168: 2023-07-08 | H168: 19188 | J168: =VLOOKUP(H168,#REF!,2,0) ->  | K168: 35075 | L168: =K168 -> 35075 | M168: 35075 | N168: 13.44 | O168: 471408
A169: 167 | B169: 1218445 | C169: 2023-07-07 | D169: 2023-07-08 | H169: 558808 | J169: =VLOOKUP(H169,#REF!,2,0) ->  | K169: 34895 | L169: =K169 -> 34895 | M169: =MIN(K169:L169) -> 34895 | N169: 13.44 | O169: 468988.8
A170: 168 | B170: 1218233 | C170: 2023-07-08 | D170: 2023-07-09 | H170: 128292 | J170: =VLOOKUP(H170,#REF!,2,0) ->  | K170: 34834 | L170: 34834 | M170: =L170 -> 34834 | N170: 13.44 | O170: 468168.96
A171: 169 | B171: 1218175 | C171: 2023-07-08 | D171: 2023-07-09 | H171: 187888 | J171: =VLOOKUP(H171,#REF!,2,0) ->  | K171: 34834 | L171: 34834 | M171: 34834 | N171: 13.44 | O171: 468168.96
A172: 170 | B172: 1218266 | C172: 2023-07-08 | D172: 2023-07-09 | H172: 60929 | J172: =VLOOKUP(H172,#REF!,2,0) ->  | K172: 34834 | L172: 34842 | M172: 34842 | N172: 13.44 | O172: 468276.48
A173: 171 | B173: 1218265 | C173: 2023-07-08 | D173: 2023-07-09 | H173: 38949 | J173: =VLOOKUP(H173,#REF!,2,0) ->  | K173: 34834 | L173: 34842 | M173: 34842 | N173: 13.44 | O173: 468276.48
A174: 172 | B174: 1218021 | C174: 2023-07-08 | D174: 2023-07-09 | H174: 48662 | J174: =VLOOKUP(H174,#REF!,2,0) ->  | K174: 35042 | L174: =K174 -> 35042 | M174: 35042 | N174: 13.44 | O174: 470964.48
A175: 173 | B175: 1218020 | C175: 2023-07-08 | D175: 2023-07-09 | H175: 562749 | J175: =VLOOKUP(H175,#REF!,2,0) ->  | K175: 35042 | L175: 35042 | M175: 35042 | N175: 13.44 | O175: 470964.48
A176: 174 | B176: 1218023 | C176: 2023-07-08 | D176: 2023-07-09 | H176: 46564 | J176: =VLOOKUP(H176,#REF!,2,0) ->  | K176: 35042 | L176: 35042 | M176: 35042 | N176: 13.44 | O176: 470964.48
A177: 175 | B177: 1218018 | C177: 2023-07-08 | D177: 2023-07-09 | H177: 61548 | J177: =VLOOKUP(H177,#REF!,2,0) ->  | K177: 35204 | L177: 35204 | M177: 35204 | N177: 13.44 | O177: 473141.76
A178: 176 | B178: 1218369 | C178: 2023-07-08 | D178: 2023-07-09 | H178: 557138 | J178: =VLOOKUP(H178,#REF!,2,0) ->  | K178: 34927 | L178: 34927 | M178: =MIN(K178:L178) -> 34927 | N178: 13.44 | O178: 469418.88
A179: 177 | B179: 1218352 | C179: 2023-07-08 | D179: 2023-07-10 | H179: 59997 | J179: =VLOOKUP(H179,#REF!,2,0) ->  | K179: 35240 | L179: 35240 | M179: =MIN(K179:L179) -> 35240 | N179: 13.44 | O179: 473625.6
A180: 178 | B180: 1229820 | C180: 2023-07-09 | D180: 2023-07-10 | H180: 52576 | J180: =VLOOKUP(H180,#REF!,2,0) ->  | K180: 35046 | L180: 35046 | M180: =L180 -> 35046 | N180: 13.44 | O180: 471018.24
A181: 179 | B181: 1317158 | C181: 2023-07-09 | D181: 2023-07-10 | H181: 168371 | J181: =VLOOKUP(H181,#REF!,2,0) ->  | K181: 34952 | L181: 34952 | M181: =L181 -> 34952 | N181: 13.44 | O181: 469754.88
A182: 180 | B182: 1229819 | C182: 2023-07-09 | D182: 2023-07-10 | H182: 60568 | J182: =VLOOKUP(H182,#REF!,2,0) ->  | K182: 35046 | L182: 35046 | M182: =L182 -> 35046 | N182: 13.44 | O182: 471018.24
A183: 181 | B183: 1229822 | C183: 2023-07-09 | D183: 2023-07-10 | H183: 559099 | J183: =VLOOKUP(H183,#REF!,2,0) ->  | K183: 35046 | L183: 35046 | M183: =L183 -> 35046 | N183: 13.44 | O183: 471018.24
A184: 182 | B184: 1229853 | C184: 2023-07-09 | D184: 2023-07-10 | H184: 558808 | J184: =VLOOKUP(H184,#REF!,2,0) ->  | K184: 35064 | L184: 35064 | M184: =MIN(K184:L184) -> 35064 | N184: 13.44 | O184: 471260.16
A185: 183 | B185: 1229519 | C185: 2023-07-10 | D185: 2023-07-11 | H185: 39143 | J185: =VLOOKUP(H185,#REF!,2,0) ->  | K185: 34834 | L185: 34841 | M185: =L185 -> 34841 | N185: 13.44 | O185: 468263.04
A186: 184 | B186: 1229511 | C186: 2023-07-10 | D186: 2023-07-11 | H186: 60445 | J186: =VLOOKUP(H186,#REF!,2,0) ->  | K186: 34553 | L186: 34554 | M186: 34554 | N186: 13.44 | O186: 464405.76
A187: 185 | B187: 1229513 | C187: 2023-07-10 | D187: 2023-07-11 | H187: 50152 | J187: =VLOOKUP(H187,#REF!,2,0) ->  | K187: 34553 | L187: 34559 | M187: 34559 | N187: 13.44 | O187: 464472.96
A188: 186 | B188: 1317221 | C188: 2023-07-10 | D188: 2023-07-12 | H188: 15214 | J188: =VLOOKUP(H188,#REF!,2,0) ->  | K188: 34553 | L188: 34559 | M188: 34559 | N188: 13.44 | O188: 464472.96
A189: 187 | B189: 1317192 | C189: 2023-07-10 | D189: 2023-07-11 | H189: 559288 | J189: =VLOOKUP(H189,#REF!,2,0) ->  | K189: 35014 | L189: =K189 -> 35014 | M189: 35014 | N189: 13.44 | O189: 470588.16
A190: 188 | B190: 1317229 | C190: 2023-07-10 | D190: 2023-07-11 | H190: 61548 | J190: =VLOOKUP(H190,#REF!,2,0) ->  | K190: 35208 | L190: 35208 | M190: 35208 | N190: 13.44 | O190: 473195.52
A191: 189 | B191: 1317228 | C191: 2023-07-10 | D191: 2023-07-11 | H191: 93455 | J191: =VLOOKUP(H191,#REF!,2,0) ->  | K191: 35208 | L191: 35208 | M191: 35208 | N191: 13.44 | O191: 473195.52
A192: 190 | B192: 1317230 | C192: 2023-07-10 | D192: 2023-07-12 | H192: 19188 | J192: =VLOOKUP(H192,#REF!,2,0) ->  | K192: 35208 | L192: 35208 | M192: =MIN(K192:L192) -> 35208 | N192: 13.44 | O192: 473195.52
A193: 191 | B193: 1229992 | C193: 2023-07-10 | D193: 2023-07-11 | H193: 46564 | J193: =VLOOKUP(H193,#REF!,2,0) ->  | K193: 34992 | L193: 34992 | M193: =MIN(K193:L193) -> 34992 | N193: 13.44 | O193: 470292.48
A194: 192 | B194: 1229624 | C194: 2023-07-10 | D194: 2023-07-11 | H194: 558808 | J194: =VLOOKUP(H194,#REF!,2,0) ->  | K194: 35132 | L194: 35132 | M194: =MIN(K194:L194) -> 35132 | N194: 13.44 | O194: 472174.08
A195: 193 | B195: 1261723 | C195: 2023-07-11 | D195: 2023-07-12 | H195: 187888 | J195: =VLOOKUP(H195,#REF!,2,0) ->  | K195: 34862 | L195: 34865 | M195: =L195 -> 34865 | N195: 13.44 | O195: 468585.6
A196: 194 | B196: 1261627 | C196: 2023-07-11 | D196: 2023-07-13 | H196: 195972 | J196: =VLOOKUP(H196,#REF!,2,0) ->  | K196: 34862 | L196: 34868 | M196: =L196 -> 34868 | N196: 13.44 | O196: =M196*N196 -> 468625.92
A197: 195 | B197: 1261801 | C197: 2023-07-11 | D197: 2023-07-12 | H197: 128292 | J197: =VLOOKUP(H197,#REF!,2,0) ->  | K197: 34862 | L197: 34868 | M197: =L197 -> 34868 | N197: 13.44 | O197: 468625.92
A198: 196 | B198: 1252415 | C198: 2023-07-11 | D198: 2023-07-12 | H198: 59997 | J198: =VLOOKUP(H198,#REF!,2,0) ->  | K198: 35172 | L198: =K198 -> 35172 | M198: =L198 -> 35172 | N198: 13.44 | O198: 472711.68
A199: 197 | B199: 1252422 | C199: 2023-07-11 | D199: 2023-07-12 | H199: 562749 | J199: =VLOOKUP(H199,#REF!,2,0) ->  | K199: 35172 | L199: 35172 | M199: =MIN(K199:L199) -> 35172 | N199: 13.44 | O199: 472711.68
A200: 198 | B200: 1261657 | C200: 2023-07-11 | D200: 2023-07-12 | H200: 559099 | J200: =VLOOKUP(H200,#REF!,2,0) ->  | K200: 34945 | L200: 34945 | M200: =MIN(K200:L200) -> 34945 | N200: 13.44 | O200: 469660.8
... 38 more rows

Sheet تقسيم
A1: 1 | B1: 2 | C1: 3 | D1: 4 | E1: 5 | F1: 6 | G1: 7 | H1: 8 | I1: 9 | J1: 10 | K1: 11 | L1: 12 | M1: 13 | N1: 14 | O1: 15 | P1: 16
A3: ت | B3: رقم المستند | C3: تاريخ التحميل | D3: تاريخ التفريغ | E3: تاريخ الوصول | F3: وقت الوصول | G3: وقت التفريغ | H3: رقم السيارة | I3: العائدية | J3: اسم السائق | K3: المحمل | L3: المفرغ | M3: الكمية المحتسبة | N3: السعر | O3: المبلغ الكلي | P3: النقص
A4: 1 | B4: 838283 | C4: 2023-06-16 | D4: 2023-06-17 | H4: 48662 | J4: محمد عدنان عويد | K4: 35064 | L4: =K4 -> 35064 | M4: 35064 | N4: 13.44 | O4: =M4*N4 -> 471260.16
A5: 2 | B5: 838169 | C5: 2023-06-16 | D5: 2023-06-17 | H5: 559099 | J5: زهير ضاري زيدان | K5: 35194 | L5: 35194 | M5: 35194 | N5: 13.44 | O5: =M5*N5 -> 473007.36
A6: 3 | B6: 838280 | C6: 2023-06-16 | D6: 2023-06-17 | H6: 42344 | J6: وطبان عدنان عويد | K6: 35194 | L6: 35194 | M6: 35194 | N6: 13.44 | O6: 473007.36
A7: 4 | B7: 838485 | C7: 2023-06-16 | D7: 2023-06-18 | H7: 642 | J7: وليد خالد إبراهيم | K7: 35064 | L7: 35064 | M7: 35064 | N7: 13.44 | O7: 471260.16
A8: 5 | B8: 838459 | C8: 2023-06-16 | D8: 2023-06-18 | H8: 46564 | J8: مهند عامج حماد | K8: 35064 | L8: 35064 | M8: 35064 | N8: 13.44 | O8: 471260.16
A9: 6 | B9: 838466 | C9: 2023-06-16 | D9: 2023-06-17 | H9: 93455 | J9: مهند حسين محمد | K9: 34747 | L9: 34748 | M9: =MIN(K9:L9) -> 34747 | N9: 13.44 | O9: 466999.68
A10: 7 | B10: 838468 | C10: 2023-06-16 | D10: 2023-06-17 | H10: 19188 | J10: فلاح نوري زيدان | K10: 34747 | L10: 34748 | M10: =MIN(K10:L10) -> 34747 | N10: 13.44 | O10: 466999.68
A11: 8 | B11: 838481 | C11: 2023-06-16 | D11: 2023-06-17 | H11: 60568 | J11: مجبل عويد فرحان | K11: 34837 | L11: 34899 | M11: =MIN(K11:L11) -> 34837 | N11: 13.44 | O11: 468209.28
A12: 9 | B12: 838490 | C12: 2023-06-16 | D12: 2023-06-17 | H12: 558265 | J12: عبدالرحمن خميس | K12: 34748 | L12: 34751 | M12: =MIN(K12:L12) -> 34748 | N12: 13.44 | O12: 467013.12
A13: 10 | B13: 838370 | C13: 2023-06-16 | D13: 2023-06-20 | H13: 48662 | J13: محمد عدنان عويد | K13: 34762 | L13: 34521 | M13: =MIN(K13:L13) -> 34521 | N13: 13.44 | O13: 463962.24 | P13: 241
J14: مجموع | M14: =SUM(M4:M13) -> 349180 | O14: =SUM(O4:O13) -> 4692979.2 | P14: =SUM(P4:P13) -> 241
A17: ت | B17: رقم المستند | C17: تاريخ التحميل | D17: تاريخ التفريغ | E17: تاريخ الوصول | F17: وقت الوصول | G17: وقت التفريغ | H17: رقم السيارة | I17: العائدية | J17: اسم السائق | K17: المحمل | L17: المفرغ | M17: الكمية المحتسبة | N17: السعر | O17: المبلغ الكلي | P17: النقص
A18: 11 | B18: 831179 | C18: 2023-06-17 | D18: 2023-06-18 | H18: 559288 | J18: محمد خميس حمد | K18: 35028 | L18: =K18 -> 35028 | M18: 35028 | N18: 13.44 | O18: =M18*N18 -> 470776.32
A19: 12 | B19: 831236 | C19: 2023-06-17 | D19: 2023-06-18 | H19: 557138 | J19: خلف عواد مخلف | K19: 35028 | L19: 35028 | M19: 35028 | N19: 13.44 | O19: 470776.32
A20: 13 | B20: 831225 | C20: 2023-06-17 | D20: 2023-06-18 | H20: 562749 | J20: جمعه عويد فرحان | K20: 35028 | L20: 35028 | M20: 35028 | N20: 13.44 | O20: 470776.32
A21: 14 | B21: 831188 | C21: 2023-06-17 | D21: 2023-06-18 | H21: 558808 | J21: احمد ضاري زيدان | K21: 34769 | L21: 34515 | M21: =MIN(K21:L21) -> 34515 | N21: 13.44 | O21: 463881.6 | P21: 254
A22: 15 | B22: 831165 | C22: 2023-06-17 | D22: 2023-06-18 | H22: 187888 | J22: خميس حسين علي | K22: 34769 | L22: 34636 | M22: =MIN(K22:L22) -> 34636 | N22: 13.44 | O22: 465507.84 | P22: 133
A23: 16 | B23: 831193 | C23: 2023-06-17 | D23: 2023-06-18 | H23: 50152 | J23: مجيد مطر فرحان | K23: 34952 | L23: 34959 | M23: =MIN(K23:L23) -> 34952 | N23: 13.44 | O23: 469754.88
A24: 17 | B24: 831103 | C24: 2023-06-17 | D24: 2023-06-18 | H24: 60445 | J24: مهند مزيون مطر | K24: 35952 | L24: 34959 | M24: =MIN(K24:L24) -> 34959 | N24: 13.44 | O24: 469848.96
A25: 18 | B25: 831139 | C25: 2023-06-17 | D25: 2023-06-19 | H25: 58383 | J25: سعيد خالد إبراهيم | K25: 34769 | L25: 34773 | M25: =MIN(K25:L25) -> 34769 | N25: 13.44 | O25: 467295.36
A26: 19 | B26: 831238 | C26: 2023-06-17 | D26: 2023-06-18 | H26: 61548 | J26: شعيب ضاري زيدان | K26: 35028 | L26: =K26 -> 35028 | M26: 35028 | N26: 13.44 | O26: 470776.32
A27: 20 | B27: 831338 | C27: 2023-06-18 | D27: 2023-06-19 | H27: 559099 | J27: زهير ضاري زيدان | K27: 35060 | L27: 35060 | M27: 35060 | N27: 13.44 | O27: 471206.4
J28: مجموع | M28: =SUM(M18:M27) -> 349003 | O28: =SUM(O18:O27) -> 4690600.32 | P28: =SUM(P18:P27) -> 387
A31: ت | B31: رقم المستند | C31: تاريخ التحميل | D31: تاريخ التفريغ | E31: تاريخ الوصول | F31: وقت الوصول | G31: وقت التفريغ | H31: رقم السيارة | I31: العائدية | J31: اسم السائق | K31: المحمل | L31: المفرغ | M31: الكمية المحتسبة | N31: السعر | O31: المبلغ الكلي | P31: النقص
A32: 21 | B32: 789300 | C32: 2023-06-18 | D32: 2023-06-19 | H32: 52576 | J32: زيد ضاحي حسن | K32: 35060 | L32: =K32 -> 35060 | M32: 35060 | N32: 13.44 | O32: =M32*N32 -> 471206.4
A33: 22 | B33: 789375 | C33: 2023-06-18 | D33: 2023-06-19 | H33: 38949 | J33: حسين علي عواد | K33: 34859 | L33: 34868 | M33: =MIN(K33:L33) -> 34859 | N33: 13.44 | O33: 468504.96
A34: 23 | B34: 789374 | C34: 2023-06-18 | D34: 2023-06-19 | H34: 60929 | J34: محمد علي عواد | K34: 34859 | L34: 34868 | M34: =MIN(K34:L34) -> 34859 | N34: 13.44 | O34: 468504.96
A35: 24 | B35: 789370 | C35: 2023-06-18 | D35: 2023-06-20 | H35: 128292 | J35: سيف حماد عاصي | K35: 34859 | L35: 34863 | M35: =MIN(K35:L35) -> 34859 | N35: 13.44 | O35: 468504.96
A36: 25 | B36: 789421 | C36: 2023-06-18 | D36: 2023-06-20 | H36: 39143 | J36: فؤاد سامي جلوي | K36: 34812 | L36: 34813 | M36: =MIN(K36:L36) -> 34812 | N36: 13.44 | O36: 467873.28
A37: 26 | B37: 838352 | C37: 2023-06-19 | D37: 2023-06-20 | H37: 60568 | J37: مجبل عويد فرحان | K37: 35190 | L37: =K37 -> 35190 | M37: 35190 | N37: 13.44 | O37: 472953.6
A38: 27 | B38: 838357 | C38: 2023-06-19 | D38: 2023-06-20 | H38: 93455 | J38: مهند حسين محمد | K38: 35190 | L38: 35190 | M38: 35190 | N38: 13.44 | O38: 472953.6
A39: 28 | B39: 838354 | C39: 2023-06-19 | D39: 2023-06-20 | H39: 19188 | J39: فلاح نوري زيدان | K39: 35190 | L39: 35190 | M39: 35190 | N39: 13.44 | O39: 472953.6
A40: 29 | B40: 838353 | C40: 2023-06-19 | D40: 2023-06-20 | H40: 61548 | J40: شعيب ضاري زيدان | K40: 35190 | L40: 35190 | M40: 35190 | N40: 13.44 | O40: 472953.6
A41: 30 | B41: 838374 | C41: 2023-06-19 | D41: 2023-06-20 | H41: 558265 | J41: عبدالرحمن خميس | K41: 34762 | L41: 34655 | M41: =MIN(K41:L41) -> 34655 | N41: 13.44 | O41: 465763.2 | P41: 107
J42: مجموع | M42: =SUM(M32:M41) -> 349864 | O42: =SUM(O32:O41) -> 4702172.16 | P42: =SUM(P32:P41) -> 107
A45: ت | B45: رقم المستند | C45: تاريخ التحميل | D45: تاريخ التفريغ | E45: تاريخ الوصول | F45: وقت الوصول | G45: وقت التفريغ | H45: رقم السيارة | I45: العائدية | J45: اسم السائق | K45: المحمل | L45: المفرغ | M45: الكمية المحتسبة | N45: السعر | O45: المبلغ الكلي | P45: النقص
A46: 31 | B46: 838367 | C46: 2023-06-19 | D46: 2023-06-20 | H46: 65941 | J46: خالد مشرف طه | K46: 34762 | L46: 34767 | M46: =MIN(K46:L46) -> 34762 | N46: 13.44 | O46: =M46*N46 -> 467201.28
A47: 32 | B47: 838399 | C47: 2023-06-19 | D47: 2023-06-20 | H47: 558808 | J47: احمد ضاري زيدان | K47: 34762 | L47: 34767 | M47: =MIN(K47:L47) -> 34762 | N47: 13.44 | O47: 467201.28
A48: 33 | B48: 838332 | C48: 2023-06-19 | D48: 2023-06-20 | H48: 168371 | J48: فراس كامل حسين | K48: 34762 | L48: 34767 | M48: =MIN(K48:L48) -> 34762 | N48: 13.44 | O48: 467201.28
A49: 34 | B49: 1320217 | C49: 2023-06-20 | D49: 2023-06-21 | H49: 557138 | J49: خلف عواد مخلف | K49: 35064 | L49: =K49 -> 35064 | M49: 35064 | N49: 13.44 | O49: 471260.16
A50: 35 | B50: 1320133 | C50: 2023-06-20 | D50: 2023-06-21 | H50: 562749 | J50: جمعه عويد فرحان | K50: 35064 | L50: 35064 | M50: 35064 | N50: 13.44 | O50: 471260.16
A51: 36 | B51: 1320135 | C51: 2023-06-20 | D51: 2023-06-21 | H51: 42344 | J51: وطبان عدنان عويد | K51: 35064 | L51: 35064 | M51: 35064 | N51: 13.44 | O51: 471260.16
A52: 37 | B52: 1320327 | C52: 2023-06-20 | D52: 2023-06-21 | H52: 642 | J52: وليد خالد إبراهيم | K52: 34999 | L52: 34999 | M52: 34999 | N52: 13.44 | O52: 470386.56
A53: 38 | B53: 1320304 | C53: 2023-06-20 | D53: 2023-06-21 | H53: 58383 | J53: سعيد خالد إبراهيم | K53: 34668 | L53: 34669 | M53: =MIN(K53:L53) -> 34668 | N53: 13.44 | O53: 465937.92
A54: 39 | B54: 1320273 | C54: 2023-06-20 | D54: 2023-06-22 | H54: 195972 | J54: مجيد جمعة علي | K54: 34668 | L54: 34672 | M54: =MIN(K54:L54) -> 34668 | N54: 13.44 | O54: 465937.92
A55: 40 | B55: 1320187 | C55: 2023-06-20 | D55: 2023-06-21 | H55: 59997 | J55: تحسين محمد زغير | K55: 34668 | L55: 34672 | M55: =MIN(K55:L55) -> 34668 | N55: 13.44 | O55: 465937.92
J56: مجموع | M56: =SUM(M46:M55) -> 348481 | O56: =SUM(O46:O55) -> 4683584.64 | P56: =SUM(P46:P55) -> 0
A59: ت | B59: رقم المستند | C59: تاريخ التحميل | D59: تاريخ التفريغ | E59: تاريخ الوصول | F59: وقت الوصول | G59: وقت التفريغ | H59: رقم السيارة | I59: العائدية | J59: اسم السائق | K59: المحمل | L59: المفرغ | M59: الكمية المحتسبة | N59: السعر | O59: المبلغ الكلي | P59: النقص
A60: 41 | B60: 1342169 | C60: 2023-06-21 | D60: 2023-06-22 | H60: 559099 | J60: زهير ضاري زيدان | K60: 35064 | L60: =K60 -> 35064 | M60: 35064 | N60: 13.44 | O60: =M60*N60 -> 471260.16
A61: 42 | B61: 1342126 | C61: 2023-06-21 | D61: 2023-06-22 | H61: 559288 | J61: محمد خميس حمد | K61: 35064 | L61: 35064 | M61: 35064 | N61: 13.44 | O61: 471260.16
A62: 43 | B62: 1342134 | C62: 2023-06-21 | D62: 2023-06-22 | H62: 168371 | J62: فراس كامل حسين | K62: 35064 | L62: 35064 | M62: 35064 | N62: 13.44 | O62: 471260.16
A63: 44 | B63: 838197 | C63: 2023-06-21 | D63: 2023-06-23 | H63: 52576 | J63: زيد ضاحي حسن | K63: 35064 | L63: 35064 | M63: 35064 | N63: 13.44 | O63: 471260.16
A64: 45 | B64: 838053 | C64: 2023-06-21 | D64: 2023-06-22 | H64: 187888 | J64: خميس حسين علي | K64: 34668 | L64: 34672 | M64: =MIN(K64:L64) -> 34668 | N64: 13.44 | O64: 465937.92
A65: 46 | B65: 1342076 | C65: 2023-06-21 | D65: 2023-06-22 | H65: 50152 | J65: مجيد مطر فرحان | K65: 34668 | L65: 34674 | M65: =MIN(K65:L65) -> 34668 | N65: 13.44 | O65: 465937.92
A66: 47 | B66: 1342077 | C66: 2023-06-21 | D66: 2023-06-22 | H66: 60445 | J66: مهند مزيون مطر | K66: 34668 | L66: 34674 | M66: =MIN(K66:L66) -> 34668 | N66: 13.44 | O66: 465937.92
A67: 48 | B67: 1342255 | C67: 2023-06-22 | D67: 2023-06-23 | H67: 46564 | J67: مهند عامج حماد | K67: 35064 | L67: =K67 -> 35064 | M67: 35064 | N67: 13.44 | O67: 471260.16
A68: 49 | B68: 1342049 | C68: 2023-06-22 | D68: 2023-06-23 | H68: 60568 | J68: مجبل عويد فرحان | K68: 35064 | L68: 35064 | M68: 35064 | N68: 13.44 | O68: 471260.16
A69: 50 | B69: 1342242 | C69: 2023-06-22 | D69: 2023-06-23 | H69: 61548 | J69: شعيب ضاري زيدان | K69: 35194 | L69: 35194 | M69: 35194 | N69: 13.44 | O69: 473007.36
J70: مجموع | M70: =SUM(M60:M69) -> 349582 | O70: =SUM(O60:O69) -> 4698382.08 | P70: =SUM(P60:P69) -> 0
A73: ت | B73: رقم المستند | C73: تاريخ التحميل | D73: تاريخ التفريغ | E73: تاريخ الوصول | F73: وقت الوصول | G73: وقت التفريغ | H73: رقم السيارة | I73: العائدية | J73: اسم السائق | K73: المحمل | L73: المفرغ | M73: الكمية المحتسبة | N73: السعر | O73: المبلغ الكلي | P73: النقص
A74: 51 | B74: 1342251 | C74: 2023-06-22 | D74: 2023-06-23 | H74: 65941 | J74: خالد مشرف طه | K74: 35064 | L74: =K74 -> 35064 | M74: 35064 | N74: 13.44 | O74: =M74*N74 -> 471260.16
A75: 52 | B75: 1342471 | C75: 2023-06-22 | D75: 2023-06-23 | H75: 128292 | J75: سيف حماد عاصي | K75: 34675 | L75: 34680 | M75: =MIN(K75:L75) -> 34675 | N75: 13.44 | O75: 466032
A76: 53 | B76: 1342206 | C76: 2023-06-22 | D76: 2023-06-23 | H76: 39143 | J76: فؤاد سامي جلوي | K76: 34996 | L76: 35001 | M76: =MIN(K76:L76) -> 34996 | N76: 13.44 | O76: 470346.24
A77: 54 | B77: 1342036 | C77: 2023-06-22 | D77: 2023-06-23 | H77: 558808 | J77: احمد ضاري زيدان | K77: 35266 | L77: 35266 | M77: =MIN(K77:L77) -> 35266 | N77: 13.44 | O77: 473975.04
A78: 55 | B78: 831420 | C78: 2023-06-23 | D78: 2023-06-24 | H78: 48662 | J78: محمد عدنان عويد | K78: 34167 | L78: =K78 -> 34167 | M78: 34167 | N78: 13.44 | O78: 459204.48
A79: 56 | B79: 831417 | C79: 2023-06-23 | D79: 2023-06-24 | H79: 93455 | J79: مهند حسين محمد | K79: 35167 | L79: 35167 | M79: 35167 | N79: 13.44 | O79: 472644.48
A80: 57 | B80: 831410 | C80: 2023-06-23 | D80: 2023-06-24 | H80: 59997 | J80: تحسين محمد زغير | K80: 34967 | L80: 34967 | M80: 34967 | N80: 13.44 | O80: 469956.48
A81: 58 | B81: 831416 | C81: 2023-06-23 | D81: 2023-06-24 | H81: 19188 | J81: فلاح نوري زيدان | K81: 34967 | L81: 34967 | M81: 34967 | N81: 13.44 | O81: 469956.48
A82: 59 | B82: 789468 | C82: 2023-06-23 | D82: 2023-06-24 | H82: 558265 | J82: عبدالرحمن خميس | K82: 34636 | L82: 34639 | M82: =MIN(K82:L82) -> 34636 | N82: 13.44 | O82: 465507.84
A83: 60 | B83: 789438 | C83: 2023-06-23 | D83: 2023-06-24 | H83: 60929 | J83: محمد علي عواد | K83: 34636 | L83: 34642 | M83: =MIN(K83:L83) -> 34636 | N83: 13.44 | O83: 465507.84
J84: مجموع | M84: =SUM(M74:M83) -> 348541 | O84: =SUM(O74:O83) -> 4684391.04 | P84: =SUM(P74:P83) -> 0
A87: ت | B87: رقم المستند | C87: تاريخ التحميل | D87: تاريخ التفريغ | E87: تاريخ الوصول | F87: وقت الوصول | G87: وقت التفريغ | H87: رقم السيارة | I87: العائدية | J87: اسم السائق | K87: المحمل | L87: المفرغ | M87: الكمية المحتسبة | N87: السعر | O87: المبلغ الكلي | P87: النقص
A88: 61 | B88: 789433 | C88: 2023-06-23 | D88: 2023-06-24 | H88: 38949 | J88: حسين علي عواد | K88: 34636 | L88: 34642 | M88: =MIN(K88:L88) -> 34636 | N88: 13.44 | O88: =M88*N88 -> 465507.84
A89: 62 | B89: 1345766 | C89: 2023-06-24 | D89: 2023-06-25 | H89: 642 | J89: وليد خالد إبراهيم | K89: 34934 | L89: =K89 -> 34934 | M89: 34934 | N89: 13.44 | O89: 469512.96
A90: 63 | B90: 1345801 | C90: 2023-06-24 | D90: 2023-06-25 | H90: 42344 | J90: وطبان عدنان عويد | K90: 35032 | L90: 35032 | M90: 35032 | N90: 13.44 | O90: 470830.08
A91: 64 | B91: 1345806 | C91: 2023-06-24 | D91: 2023-06-25 | H91: 557138 | J91: خلف عواد مخلف | K91: 35032 | L91: 35032 | M91: 35032 | N91: 13.44 | O91: 470830.08
A92: 65 | B92: 1345782 | C92: 2023-06-24 | D92: 2023-06-25 | H92: 562749 | J92: جمعه عويد فرحان | K92: 35194 | L92: 35194 | M92: 35194 | N92: 13.44 | O92: 473007.36
A93: 66 | B93: 1345813 | C93: 2023-06-24 | D93: 2023-06-25 | H93: 187888 | J93: خميس حسين علي | K93: 34596 | L93: 34596 | M93: =MIN(K93:L93) -> 34596 | N93: 13.44 | O93: 464970.24
A94: 67 | B94: 1345817 | C94: 2023-06-24 | D94: 2023-06-26 | H94: 195972 | J94: مجيد جمعة علي | K94: 34589 | L94: 34589 | M94: =MIN(K94:L94) -> 34589 | N94: 13.44 | O94: 464876.16
A95: 68 | B95: 1320476 | C95: 2023-06-25 | D95: 2023-06-26 | H95: 559099 | J95: زهير ضاري زيدان | K95: 35032 | L95: =K95 -> 35032 | M95: 35032 | N95: 13.44 | O95: 470830.08
A96: 69 | B96: 1320479 | C96: 2023-06-25 | D96: 2023-06-26 | H96: 559288 | J96: محمد خميس حمد | K96: 35032 | L96: 35032 | M96: 35032 | N96: 13.44 | O96: 470830.08
A97: 70 | B97: 1320281 | C97: 2023-06-25 | D97: 2023-06-26 | H97: 52576 | J97: زيد ضاحي حسن | K97: 35032 | L97: 35032 | M97: 35032 | N97: 13.44 | O97: 470830.08
J98: مجموع | M98: =SUM(M88:M97) -> 349109 | O98: =SUM(O88:O97) -> 4692024.96 | P98: =SUM(P88:P97) -> 0
A101: ت | B101: رقم المستند | C101: تاريخ التحميل | D101: تاريخ التفريغ | E101: تاريخ الوصول | F101: وقت الوصول | G101: وقت التفريغ | H101: رقم السيارة | I101: العائدية | J101: اسم السائق | K101: المحمل | L101: المفرغ | M101: الكمية المحتسبة | N101: السعر | O101: المبلغ الكلي | P101: النقص
A102: 71 | B102: 1320481 | C102: 2023-06-25 | D102: 2023-06-26 | H102: 60568 | J102: مجبل عويد فرحان | K102: 35032 | L102: =K102 -> 35032 | M102: 35032 | N102: 13.44 | O102: =M102*N102 -> 470830.08
A103: 72 | B103: 1323503 | C103: 2023-06-25 | D103: 2023-06-26 | H103: 558808 | J103: احمد ضاري زيدان | K103: 34629 | L103: 34629 | M103: =MIN(K103:L103) -> 34629 | N103: 13.44 | O103: 465413.76
A104: 73 | B104: 1323598 | C104: 2023-06-25 | D104: 2023-06-26 | H104: 50152 | J104: مجيد مطر فرحان | K104: 34953 | L104: 34953 | M104: =MIN(K104:L104) -> 34953 | N104: 13.44 | O104: 469768.32
A105: 74 | B105: 1323659 | C105: 2023-06-25 | D105: 2023-06-26 | H105: 60445 | J105: مهند مزيون مطر | K105: 34953 | L105: 34953 | M105: =MIN(K105:L105) -> 34953 | N105: 13.44 | O105: 469768.32
A106: 75 | B106: 1323700 | C106: 2023-06-26 | D106: 2023-06-27 | H106: 93455 | J106: مهند حسين محمد | K106: 35032 | L106: =K106 -> 35032 | M106: 35032 | N106: 13.44 | O106: 470830.08
A107: 76 | B107: 1323666 | C107: 2023-06-26 | D107: 2023-06-27 | H107: 19188 | J107: فلاح نوري زيدان | K107: 35032 | L107: 35032 | M107: 35032 | N107: 13.44 | O107: 470830.08
A108: 77 | B108: 1323721 | C108: 2023-06-26 | D108: 2023-06-27 | H108: 46564 | J108: مهند عامج حماد | K108: 34967 | L108: 34967 | M108: 34967 | N108: 13.44 | O108: 469956.48
A109: 78 | B109: 1323664 | C109: 2023-06-26 | D109: 2023-06-27 | H109: 61548 | J109: شعيب ضاري زيدان | K109: 35032 | L109: 35032 | M109: 35032 | N109: 13.44 | O109: 470830.08
A110: 79 | B110: 1323816 | C110: 2023-06-26 | D110: 2023-06-27 | H110: 15214 | J110: محمد زيدان خلف | K110: 34894 | L110: 34894 | M110: =MIN(K110:L110) -> 34894 | N110: 13.44 | O110: 468975.36
A111: 80 | B111: 1323876 | C111: 2023-06-26 | D111: 2023-06-27 | H111: 39143 | J111: فؤاد سامي جلوي | K111: 34894 | L111: 34894 | M111: =MIN(K111:L111) -> 34894 | N111: 13.44 | O111: 468975.36
J112: مجموع | M112: =SUM(M102:M111) -> 349418 | O112: =SUM(O102:O111) -> 4696177.92 | P112: =SUM(P102:P111) -> 0
A115: ت | B115: رقم المستند | C115: تاريخ التحميل | D115: تاريخ التفريغ | E115: تاريخ الوصول | F115: وقت الوصول | G115: وقت التفريغ | H115: رقم السيارة | I115: العائدية | J115: اسم السائق | K115: المحمل | L115: المفرغ | M115: الكمية المحتسبة | N115: السعر | O115: المبلغ الكلي | P115: النقص
A116: 81 | B116: 1323649 | C116: 2023-06-26 | D116: 2023-06-27 | H116: 558265 | J116: عبدالرحمن خميس | K116: 34755 | L116: 34755 | M116: =MIN(K116:L116) -> 34755 | N116: 13.44 | O116: =M116*N116 -> 467107.2
A117: 82 | B117: 1342449 | C117: 2023-06-27 | D117: 2023-06-28 | H117: 558808 | J117: احمد ضاري زيدان | K117: 35298 | L117: =K117 -> 35298 | M117: 35298 | N117: 13.44 | O117: 474405.12
A118: 83 | B118: 1342374 | C118: 2023-06-27 | D118: 2023-06-28 | H118: 562749 | J118: جمعه عويد فرحان | K118: 35298 | L118: 35298 | M118: 35298 | N118: 13.44 | O118: 474405.12
A119: 84 | B119: 1342445 | C119: 2023-06-27 | D119: 2023-06-28 | H119: 59997 | J119: تحسين محمد زغير | K119: 35298 | L119: 35298 | M119: 35298 | N119: 13.44 | O119: 474405.12
A120: 85 | B120: 1342447 | C120: 2023-06-27 | D120: 2023-06-28 | H120: 559099 | J120: زهير ضاري زيدان | K120: 35298 | L120: 35298 | M120: 35298 | N120: 13.44 | O120: 474405.12
A121: 86 | B121: 1316938 | C121: 2023-06-27 | D121: 2023-06-28 | H121: 187888 | J121: خميس حسين علي | K121: 34910 | L121: 34910 | M121: =MIN(K121:L121) -> 34910 | N121: 13.44 | O121: 469190.4
A122: 87 | B122: 1316975 | C122: 2023-06-27 | D122: 2023-06-28 | H122: 642 | J122: وليد خالد إبراهيم | K122: 34908 | L122: 34908 | M122: =MIN(K122:L122) -> 34908 | N122: 13.44 | O122: 469163.52
A123: 88 | B123: 1316932 | C123: 2023-06-27 | D123: 2023-06-28 | H123: 38949 | J123: حسين علي عواد | K123: 34908 | L123: 34908 | M123: =MIN(K123:L123) -> 34908 | N123: 13.44 | O123: 469163.52
A124: 89 | B124: 1316931 | C124: 2023-06-27 | D124: 2023-06-28 | H124: 60929 | J124: محمد علي عواد | K124: 34915 | L124: 34915 | M124: =MIN(K124:L124) -> 34915 | N124: 13.44 | O124: 469257.6
A125: 90 | B125: 1317397 | C125: 2023-06-28 | D125: 2023-03-29 | H125: 195972 | J125: مجيد جمعة علي | K125: 34914 | L125: 34914 | M125: =MIN(K125:L125) -> 34914 | N125: 13.44 | O125: 469244.16
J126: مجموع | M126: =SUM(M116:M125) -> 350502 | O126: =SUM(O116:O125) -> 4710746.88 | P126: =SUM(P116:P125) -> 0
A129: ت | B129: رقم المستند | C129: تاريخ التحميل | D129: تاريخ التفريغ | E129: تاريخ الوصول | F129: وقت الوصول | G129: وقت التفريغ | H129: رقم السيارة | I129: العائدية | J129: اسم السائق | K129: المحمل | L129: المفرغ | M129: الكمية المحتسبة | N129: السعر | O129: المبلغ الكلي | P129: النقص
A130: 91 | B130: 1317453 | C130: 2023-06-28 | D130: 2023-06-29 | H130: 52576 | J130: زيد ضاحي حسن | K130: 35096 | L130: =K130 -> 35096 | M130: 35096 | N130: 13.44 | O130: =M130*N130 -> 471690.24
A131: 92 | B131: 1317251 | C131: 2023-06-28 | D131: 2023-06-29 | H131: 557138 | J131: خلف عواد مخلف | K131: 35096 | L131: 35096 | M131: 35096 | N131: 13.44 | O131: 471690.24
A132: 93 | B132: 1317482 | C132: 2023-06-28 | D132: 2023-06-29 | H132: 559288 | J132: محمد خميس حمد | K132: 35096 | L132: 35096 | M132: 35096 | N132: 13.44 | O132: 471690.24
A133: 94 | B133: 1317481 | C133: 2023-06-28 | D133: 2023-06-29 | H133: 558265 | J133: عبدالرحمن خميس | K133: 35096 | L133: 35096 | M133: 35096 | N133: 13.44 | O133: 471690.24
A134: 95 | B134: 1317387 | C134: 2023-06-28 | D134: 2023-06-29 | H134: 558808 | J134: احمد ضاري زيدان | K134: 34495 | L134: 34495 | M134: =MIN(K134:L134) -> 34495 | N134: 13.44 | O134: 463612.8
A135: 96 | B135: 1317292 | C135: 2023-06-28 | D135: 2023-06-30 | H135: 15214 | J135: محمد زيدان خلف | K135: 34914 | L135: 34914 | M135: =MIN(K135:L135) -> 34914 | N135: 13.44 | O135: 469244.16
A136: 97 | B136: 1317288 | C136: 2023-06-28 | D136: 2023-06-30 | H136: 39143 | J136: فؤاد سامي جلوي | K136: 34914 | L136: 34914 | M136: =MIN(K136:L136) -> 34914 | N136: 13.44 | O136: 469244.16
A137: 98 | B137: 1345696 | C137: 2023-06-29 | D137: 2023-06-30 | H137: 61548 | J137: شعيب ضاري زيدان | K137: 35258 | L137: =K137 -> 35258 | M137: 35258 | N137: 13.44 | O137: 473867.52
A138: 99 | B138: 1252133 | C138: 2023-06-29 | D138: 2023-06-30 | H138: 60568 | J138: مجبل عويد فرحان | K138: 35064 | L138: 35064 | M138: 35064 | N138: 13.44 | O138: 471260.16
A139: 100 | B139: 1252126 | C139: 2023-06-29 | D139: 2023-06-30 | H139: 93455 | J139: مهند حسين محمد | K139: 35067 | L139: 35067 | M139: 35067 | N139: 13.44 | O139: 471300.48
J140: مجموع | M140: =SUM(M130:M139) -> 350096 | O140: =SUM(O130:O139) -> 4705290.24 | P140: =SUM(P130:P139) -> 0
A143: ت | B143: رقم المستند | C143: تاريخ التحميل | D143: تاريخ التفريغ | E143: تاريخ الوصول | F143: وقت الوصول | G143: وقت التفريغ | H143: رقم السيارة | I143: العائدية | J143: اسم السائق | K143: المحمل | L143: المفرغ | M143: الكمية المحتسبة | N143: السعر | O143: المبلغ الكلي | P143: النقص
A144: 101 | B144: 1252054 | C144: 2023-06-29 | D144: 2023-06-30 | H144: 60445 | J144: مهند مزيون مطر | K144: 34652 | L144: 34652 | M144: =MIN(K144:L144) -> 34652 | N144: 13.44 | O144: =M144*N144 -> 465722.88
A145: 102 | B145: 1252149 | C145: 2023-06-29 | D145: 2023-06-30 | H145: 19188 | J145: فلاح نوري زيدان | K145: 34653 | L145: 34653 | M145: =MIN(K145:L145) -> 34653 | N145: 13.44 | O145: 465736.32
A146: 103 | B146: 1345866 | C146: 2023-06-30 | D146: 2023-07-01 | H146: 168371 | J146: فراس كامل حسين | K146: 35064 | L146: =K146 -> 35064 | M146: 35064 | N146: 13.44 | O146: 471260.16
A147: 104 | B147: 1346000 | C147: 2023-06-30 | D147: 2023-07-01 | H147: 48662 | J147: محمد عدنان عويد | K147: 35194 | L147: 35194 | M147: 35194 | N147: 13.44 | O147: 473007.36
A148: 105 | B148: 1345865 | C148: 2023-06-30 | D148: 2023-07-01 | H148: 65941 | J148: خالد مشرف طه | K148: 35464 | L148: 35464 | M148: 35464 | N148: 13.44 | O148: 476636.16
A149: 106 | B149: 1345999 | C149: 2023-06-30 | D149: 2023-07-02 | H149: 59997 | J149: تحسين محمد زغير | K149: 35194 | L149: 35194 | M149: 35194 | N149: 13.44 | O149: 473007.36
A150: 107 | B150: 1345947 | C150: 2023-06-30 | D150: 2023-07-01 | H150: 60929 | J150: محمد علي عواد | K150: 34969 | L150: 34969 | M150: =MIN(K150:L150) -> 34969 | N150: 13.44 | O150: 469983.36
A151: 108 | B151: 1345908 | C151: 2023-06-30 | D151: 2023-07-01 | H151: 187888 | J151: خميس حسين علي | K151: 34646 | L151: 34646 | M151: =MIN(K151:L151) -> 34646 | N151: 13.44 | O151: 465642.24
A152: 109 | B152: 1252164 | C152: 2023-06-30 | D152: 2023-07-01 | H152: 38949 | J152: حسين علي عواد | K152: 34966 | L152: 34966 | M152: =MIN(K152:L152) -> 34966 | N152: 13.44 | O152: 469943.04
A153: 110 | B153: 1345910 | C153: 2023-06-30 | D153: 2023-07-01 | H153: 642 | J153: وليد خالد إبراهيم | K153: 34646 | L153: 34646 | M153: =MIN(K153:L153) -> 34646 | N153: 13.44 | O153: 465642.24
J154: مجموع | M154: =SUM(M144:M153) -> 349448 | O154: =SUM(O144:O153) -> 4696581.12 | P154: =SUM(P144:P153) -> 0
A157: ت | B157: رقم المستند | C157: تاريخ التحميل | D157: تاريخ التفريغ | E157: تاريخ الوصول | F157: وقت الوصول | G157: وقت التفريغ | H157: رقم السيارة | I157: العائدية | J157: اسم السائق | K157: المحمل | L157: المفرغ | M157: الكمية المحتسبة | N157: السعر | O157: المبلغ الكلي | P157: النقص
A158: 111 | B158: 1252052 | C158: 2023-06-30 | D158: 2023-06-30 | H158: 50152 | J158: مجيد مطر فرحان | K158: 34656 | L158: 34656 | M158: =MIN(K158:L158) -> 34656 | N158: 13.44 | O158: =M158*N158 -> 465776.64
A159: 112 | B159: 1320412 | C159: 2023-07-01 | D159: 2023-07-02 | H159: 39143 | J159: =VLOOKUP(H159,#REF!,2,0) ->  | K159: 34880 | L159: 34884 | M159: =L159 -> 34884 | N159: 13.44 | O159: 468840.96
A160: 113 | B160: 1320418 | C160: 2023-07-01 | D160: 2023-07-02 | H160: 151214 | J160: محمد زيدان خلف | K160: 34880 | L160: 34884 | M160: 34884 | N160: 13.44 | O160: 468840.96
A161: 114 | B161: 1323979 | C161: 2023-07-01 | D161: 2023-07-02 | H161: 558808 | J161: =VLOOKUP(H161,#REF!,2,0) ->  | K161: 34600 | L161: 34605 | M161: 34605 | N161: 13.44 | O161: 465091.2
A162: 115 | B162: 1323978 | C162: 2023-07-01 | D162: 2023-07-02 | H162: 559099 | J162: =VLOOKUP(H162,#REF!,2,0) ->  | K162: 34600 | L162: 34608 | M162: 34608 | N162: 13.44 | O162: 465131.52
A163: 116 | B163: 1323875 | C163: 2023-07-01 | D163: 2023-07-02 | H163: 52576 | J163: =VLOOKUP(H163,#REF!,2,0) ->  | K163: 35071 | L163: =K163 -> 35071 | M163: 35071 | N163: 13.44 | O163: 471354.24
A164: 117 | B164: 1320381 | C164: 2023-07-01 | D164: 2023-07-02 | H164: 46564 | J164: =VLOOKUP(H164,#REF!,2,0) ->  | K164: 35071 | L164: =K164 -> 35071 | M164: 35071 | N164: 13.44 | O164: 471354.24
A165: 118 | B165: 1323857 | C165: 2023-07-01 | D165: 2023-07-02 | H165: 557138 | J165: =VLOOKUP(H165,#REF!,2,0) ->  | K165: 35201 | L165: =K165 -> 35201 | M165: 35201 | N165: 13.44 | O165: 473101.44
A166: 119 | B166: 1323860 | C166: 2023-07-01 | D166: 2023-07-02 | H166: 562749 | J166: =VLOOKUP(H166,#REF!,2,0) ->  | K166: 35201 | L166: =K166 -> 35201 | M166: 35201 | N166: 13.44 | O166: 473101.44
A167: 120 | B167: 1324202 | C167: 2023-07-02 | D167: 2023-07-03 | H167: 50152 | J167: =VLOOKUP(H167,#REF!,2,0) ->  | K167: 34873 | L167: 34872 | M167: 34872 | N167: 13.44 | O167: 468679.68
J168: مجموع | M168: =SUM(M158:M167) -> 349053 | O168: =SUM(O158:O167) -> 4691272.32 | P168: =SUM(P158:P167) -> 0
A171: ت | B171: رقم المستند | C171: تاريخ التحميل | D171: تاريخ التفريغ | E171: تاريخ الوصول | F171: وقت الوصول | G171: وقت التفريغ | H171: رقم السيارة | I171: العائدية | J171: اسم السائق | K171: المحمل | L171: المفرغ | M171: الكمية المحتسبة | N171: السعر | O171: المبلغ الكلي | P171: النقص
A172: 121 | B172: 1324205 | C172: 2023-07-02 | D172: 2023-07-03 | H172: 60445 | J172: =VLOOKUP(H172,#REF!,2,0) ->  | K172: 34873 | L172: 34813 | M172: =L172 -> 34813 | N172: 13.44 | O172: =M172*N172 -> 467886.72 | P172: 60
A173: 122 | B173: 1324086 | C173: 2023-07-02 | D173: 2023-07-03 | H173: 195972 | J173: =VLOOKUP(H173,#REF!,2,0) ->  | K173: 35014 | L173: 35011 | M173: 35011 | N173: 13.44 | O173: 470547.84 | P173: 3
A174: 123 | B174: 1320456 | C174: 2023-07-02 | D174: 2023-07-04 | H174: 93455 | J174: =VLOOKUP(H174,#REF!,2,0) ->  | K174: 35006 | L174: =K174 -> 35006 | M174: 35006 | N174: 13.44 | O174: 470480.64
A175: 124 | B175: 1320450 | C175: 2023-07-02 | D175: 2023-07-03 | H175: 61548 | J175: =VLOOKUP(H175,#REF!,2,0) ->  | K175: 35201 | L175: =K175 -> 35201 | M175: 35201 | N175: 13.44 | O175: 473101.44
A176: 125 | B176: 1320451 | C176: 2023-07-02 | D176: 2023-07-03 | H176: 19188 | J176: =VLOOKUP(H176,#REF!,2,0) ->  | K176: 35201 | L176: =K176 -> 35201 | M176: 35201 | N176: 13.44 | O176: 473101.44
A177: 126 | B177: 1316621 | C177: 2023-07-03 | D177: 2023-07-04 | H177: 128292 | J177: =VLOOKUP(H177,#REF!,2,0) ->  | K177: 34970 | L177: 34979 | M177: 34979 | N177: 13.44 | O177: 470117.76
A178: 127 | B178: 1316593 | C178: 2023-07-03 | D178: 2023-07-04 | H178: 38949 | J178: =VLOOKUP(H178,#REF!,2,0) ->  | K178: 34538 | L178: 34591 | M178: 34591 | N178: 13.44 | O178: 464903.04
A179: 128 | B179: 1316627 | C179: 2023-07-03 | D179: 2023-07-04 | H179: 60929 | J179: =VLOOKUP(H179,#REF!,2,0) ->  | K179: 34538 | L179: 34552 | M179: 34552 | N179: 13.44 | O179: 464378.88
A180: 129 | B180: 1316618 | C180: 2023-07-03 | D180: 2023-07-04 | H180: 187888 | J180: =VLOOKUP(H180,#REF!,2,0) ->  | K180: 34970 | L180: 34980 | M180: 34980 | N180: 13.44 | O180: 470131.2
A181: 130 | B181: 1316679 | C181: 2023-07-03 | D181: 2023-07-04 | H181: 168371 | J181: =VLOOKUP(H181,#REF!,2,0) ->  | K181: 35010 | L181: =K181 -> 35010 | M181: 35010 | N181: 13.44 | O181: 470534.4
J182: مجموع | M182: =SUM(M172:M181) -> 349344 | O182: =SUM(O172:O181) -> 4695183.36 | P182: =SUM(P172:P181) -> 63
A185: ت | B185: رقم المستند | C185: تاريخ التحميل | D185: تاريخ التفريغ | E185: تاريخ الوصول | F185: وقت الوصول | G185: وقت التفريغ | H185: رقم السيارة | I185: العائدية | J185: اسم السائق | K185: المحمل | L185: المفرغ | M185: الكمية المحتسبة | N185: السعر | O185: المبلغ الكلي | P185: النقص
A186: 131 | B186: 1316676 | C186: 2023-07-03 | D186: 2023-07-04 | H186: 559099 | J186: =VLOOKUP(H186,#REF!,2,0) ->  | K186: 35140 | L186: =K186 -> 35140 | M186: =L186 -> 35140 | N186: 13.44 | O186: =M186*N186 -> 472281.6
A187: 132 | B187: 1316678 | C187: 2023-07-03 | D187: 2023-07-04 | H187: 60568 | J187: =VLOOKUP(H187,#REF!,2,0) ->  | K187: 35140 | L187: =K187 -> 35140 | M187: 35140 | N187: 13.44 | O187: 472281.6
A188: 133 | B188: 1317341 | C188: 2023-07-04 | D188: 2023-07-05 | H188: 39143 | J188: =VLOOKUP(H188,#REF!,2,0) ->  | K188: 34834 | L188: 34849 | M188: 34849 | N188: 13.44 | O188: 468370.56
A189: 134 | B189: 1317364 | C189: 2023-07-04 | D189: 2023-07-05 | H189: 52576 | J189: =VLOOKUP(H189,#REF!,2,0) ->  | K189: 34650 | L189: 34457 | M189: 34457 | N189: 13.44 | O189: 463102.08 | P189: 193
A190: 135 | B190: 1229928 | C190: 2023-07-04 | D190: 2023-07-05 | H190: 195972 | J190: =VLOOKUP(H190,#REF!,2,0) ->  | K190: 35060 | L190: 35064 | M190: 35064 | N190: 13.44 | O190: 471260.16
A191: 136 | B191: 1316741 | C191: 2023-07-04 | D191: 2023-07-05 | H191: 15214 | J191: =VLOOKUP(H191,#REF!,2,0) ->  | K191: 34834 | L191: 34840 | M191: 34840 | N191: 13.44 | O191: 468249.6
A192: 137 | B192: 1317353 | C192: 2023-07-04 | D192: 2023-07-05 | H192: 61548 | J192: =VLOOKUP(H192,#REF!,2,0) ->  | K192: 34945 | L192: =K192 -> 34945 | M192: 34945 | N192: 13.44 | O192: 469660.8
A193: 138 | B193: 1317355 | C193: 2023-07-04 | D193: 2023-07-05 | H193: 65941 | J193: =VLOOKUP(H193,#REF!,2,0) ->  | K193: 34945 | L193: =K193 -> 34945 | M193: 34945 | N193: 13.44 | O193: 469660.8
A194: 139 | B194: 1316707 | C194: 2023-07-04 | D194: 2023-07-05 | H194: 559288 | J194: =VLOOKUP(H194,#REF!,2,0) ->  | K194: 34945 | L194: =K194 -> 34945 | M194: 34945 | N194: 13.44 | O194: 469660.8
A195: 140 | B195: 1316643 | C195: 2023-07-04 | D195: 2023-07-05 | H195: 59997 | J195: =VLOOKUP(H195,#REF!,2,0) ->  | K195: 35204 | L195: =K195 -> 35204 | M195: 35204 | N195: 13.44 | O195: 473141.76
J196: مجموع | M196: =SUM(M186:M195) -> 349529 | O196: =SUM(O186:O195) -> 4697669.76 | P196: =SUM(P186:P195) -> 193
A199: ت | B199: رقم المستند | C199: تاريخ التحميل | D199: تاريخ التفريغ | E199: تاريخ الوصول | F199: وقت الوصول | G199: وقت التفريغ | H199: رقم السيارة | I199: العائدية | J199: اسم السائق | K199: المحمل | L199: المفرغ | M199: الكمية المحتسبة | N199: السعر | O199: المبلغ الكلي | P199: النقص
A200: 141 | B200: 1252202 | C200: 2023-07-05 | D200: 2023-07-06 | H200: 19188 | J200: =VLOOKUP(H200,#REF!,2,0) ->  | K200: 34560 | L200: 34568 | M200: =L200 -> 34568 | N200: 13.44 | O200: =M200*N200 -> 464593.92
A201: 142 | B201: 1252203 | C201: 2023-07-05 | D201: 2023-07-06 | H201: 93455 | J201: =VLOOKUP(H201,#REF!,2,0) ->  | K201: 34560 | L201: 34568 | M201: 34568 | N201: 13.44 | O201: 464593.92
A202: 143 | B202: 1252305 | C202: 2023-07-05 | D202: 2023-07-06 | H202: 60445 | J202: =VLOOKUP(H202,#REF!,2,0) ->  | K202: 34560 | L202: 34567 | M202: 34567 | N202: 13.44 | O202: 464580.48
A203: 144 | B203: 1252304 | C203: 2023-07-05 | D203: 2023-07-06 | H203: 50152 | J203: =VLOOKUP(H203,#REF!,2,0) ->  | K203: 34560 | L203: 34567 | M203: 34567 | N203: 13.44 | O203: 464580.48
A204: 145 | B204: 1252195 | C204: 2023-07-05 | D204: 2023-07-06 | H204: 557138 | J204: =VLOOKUP(H204,#REF!,2,0) ->  | K204: 35140 | L204: =K204 -> 35140 | M204: 35140 | N204: 13.44 | O204: 472281.6
A205: 146 | B205: 1252197 | C205: 2023-07-05 | D205: 2023-07-06 | H205: 562749 | J205: =VLOOKUP(H205,#REF!,2,0) ->  | K205: 35140 | L205: =K205 -> 35140 | M205: 35140 | N205: 13.44 | O205: 472281.6
A206: 147 | B206: 1252232 | C206: 2023-07-05 | D206: 2023-07-06 | H206: 46564 | J206: =VLOOKUP(H206,#REF!,2,0) ->  | K206: 35140 | L206: =K206 -> 35140 | M206: 35140 | N206: 13.44 | O206: 472281.6
A207: 148 | B207: 1252198 | C207: 2023-07-05 | D207: 2023-07-06 | H207: 48662 | J207: =VLOOKUP(H207,#REF!,2,0) ->  | K207: 35140 | L207: =K207 -> 35140 | M207: 35140 | N207: 13.44 | O207: 472281.6
A208: 149 | B208: 1252200 | C208: 2023-07-05 | D208: 2023-07-06 | H208: 559099 | J208: =VLOOKUP(H208,#REF!,2,0) ->  | K208: 35140 | L208: =K208 -> 35140 | M208: 35140 | N208: 13.44 | O208: 472281.6
A209: 150 | B209: 1252350 | C209: 2023-07-06 | D209: 2023-07-07 | H209: 38949 | J209: =VLOOKUP(H209,#REF!,2,0) ->  | K209: 34470 | L209: 34475 | M209: 34475 | N209: 13.44 | O209: 463344
J210: مجموع | M210: =SUM(M200:M209) -> 348445 | O210: =SUM(O200:O209) -> 4683100.8 | P210: =SUM(P200:P209) -> 0
A213: ت | B213: رقم المستند | C213: تاريخ التحميل | D213: تاريخ التفريغ | E213: تاريخ الوصول | F213: وقت الوصول | G213: وقت التفريغ | H213: رقم السيارة | I213: العائدية | J213: اسم السائق | K213: المحمل | L213: المفرغ | M213: الكمية المحتسبة | N213: السعر | O213: المبلغ الكلي | P213: النقص
A214: 151 | B214: 1252410 | C214: 2023-07-06 | D214: 2023-07-07 | H214: 187888 | J214: =VLOOKUP(H214,#REF!,2,0) ->  | K214: 34751 | L214: 34760 | M214: =L214 -> 34760 | N214: 13.44 | O214: =M214*N214 -> 467174.4
A215: 152 | B215: 1252490 | C215: 2023-07-06 | D215: 2023-07-07 | H215: 128292 | J215: =VLOOKUP(H215,#REF!,2,0) ->  | K215: 34751 | L215: 34760 | M215: 34760 | N215: 13.44 | O215: 467174.4
A216: 153 | B216: 1252441 | C216: 2023-07-06 | D216: 2023-07-07 | H216: 60929 | J216: =VLOOKUP(H216,#REF!,2,0) ->  | K216: 34470 | L216: 34475 | M216: 34475 | N216: 13.44 | O216: 463344
A217: 154 | B217: 1261554 | C217: 2023-07-06 | D217: 2023-07-07 | H217: 60568 | J217: =VLOOKUP(H217,#REF!,2,0) ->  | K217: 35140 | L217: =K217 -> 35140 | M217: 35140 | N217: 13.44 | O217: 472281.6
A218: 155 | B218: 1261555 | C218: 2023-07-06 | D218: 2023-07-07 | H218: 59997 | J218: =VLOOKUP(H218,#REF!,2,0) ->  | K218: 35140 | L218: =K218 -> 35140 | M218: 35140 | N218: 13.44 | O218: 472281.6
A219: 156 | B219: 1261553 | C219: 2023-07-06 | D219: 2023-07-07 | H219: 61548 | J219: =VLOOKUP(H219,#REF!,2,0) ->  | K219: 35140 | L219: =K219 -> 35140 | M219: 35140 | N219: 13.44 | O219: 472281.6
A220: 157 | B220: 1261592 | C220: 2023-07-06 | D220: 2023-07-08 | H220: 65941 | J220: =VLOOKUP(H220,#REF!,2,0) ->  | K220: 35432 | L220: 35032 | M220: =MIN(K220:L220) -> 35032 | N220: 13.44 | O220: 470830.08
A221: 158 | B221: 1252332 | C221: 2023-07-06 | D221: 2023-07-07 | H221: 52576 | J221: =VLOOKUP(H221,#REF!,2,0) ->  | K221: 35032 | L221: =K221 -> 35032 | M221: =MIN(K221:L221) -> 35032 | N221: 13.44 | O221: 470830.08
A222: 159 | B222: 1218458 | C222: 2023-07-07 | D222: 2023-07-08 | H222: 50152 | J222: =VLOOKUP(H222,#REF!,2,0) ->  | K222: 34783 | L222: 34787 | M222: =L222 -> 34787 | N222: 13.44 | O222: 467537.28
A223: 160 | B223: 1218343 | C223: 2023-07-07 | D223: 2023-07-08 | H223: 39143 | J223: =VLOOKUP(H223,#REF!,2,0) ->  | K223: 34783 | L223: 34786 | M223: 34786 | N223: 13.44 | O223: 467523.84
J224: مجموع | M224: =SUM(M214:M223) -> 349052 | O224: =SUM(O214:O223) -> 4691258.88 | P224: =SUM(P214:P223) -> 0
A227: ت | B227: رقم المستند | C227: تاريخ التحميل | D227: تاريخ التفريغ | E227: تاريخ الوصول | F227: وقت الوصول | G227: وقت التفريغ | H227: رقم السيارة | I227: العائدية | J227: اسم السائق | K227: المحمل | L227: المفرغ | M227: الكمية المحتسبة | N227: السعر | O227: المبلغ الكلي | P227: النقص
A228: 161 | B228: 1218471 | C228: 2023-07-07 | D228: 2023-07-08 | H228: 15214 | J228: =VLOOKUP(H228,#REF!,2,0) ->  | K228: 34783 | L228: 34787 | M228: =L228 -> 34787 | N228: 13.44 | O228: =M228*N228 -> 467537.28
A229: 162 | B229: 1218459 | C229: 2023-07-07 | D229: 2023-07-08 | H229: 60445 | J229: =VLOOKUP(H229,#REF!,2,0) ->  | K229: 34783 | L229: 34787 | M229: 34787 | N229: 13.44 | O229: 467537.28
A230: 163 | B230: 1324099 | C230: 2023-07-07 | D230: 2023-07-08 | H230: 557138 | J230: =VLOOKUP(H230,#REF!,2,0) ->  | K230: 35204 | L230: =K230 -> 35204 | M230: 35204 | N230: 13.44 | O230: 473141.76
A231: 164 | B231: 1324123 | C231: 2023-07-07 | D231: 2023-07-08 | H231: 93455 | J231: =VLOOKUP(H231,#REF!,2,0) ->  | K231: 35075 | L231: =K231 -> 35075 | M231: 35075 | N231: 13.44 | O231: 471408
A232: 165 | B232: 1218457 | C232: 2023-07-07 | D232: 2023-07-08 | H232: 559288 | J232: =VLOOKUP(H232,#REF!,2,0) ->  | K232: 35042 | L232: =K232 -> 35042 | M232: 35042 | N232: 13.44 | O232: 470964.48
A233: 166 | B233: 1218429 | C233: 2023-07-07 | D233: 2023-07-08 | H233: 19188 | J233: =VLOOKUP(H233,#REF!,2,0) ->  | K233: 35075 | L233: =K233 -> 35075 | M233: 35075 | N233: 13.44 | O233: 471408
... 75 more rows
